Workbook

Sheet الرحلات_المعتمرين (hidden)
A2: رقم الرحلة | B2: تاريخ الرحلة | C2: نوع الرحلة | D2: رقم الحافلة | E2: اسم المرشد | F2: فندق المدينة | G2: فندق مكة | H2: م | I2: اسم المعتمر | J2: الجنسية | K2: رقم الهوية | L2: رقم الجواز | M2: نوع الخدمة | N2: جنس المعتمر | O2: ملاحظات | P2: نوع التسكين
A3: 106 | B3: 31-12-2019 | C3: طيران | D3: 2 | E3: مجموعة ايناس الرام | F3: المركزية | G3: دار الايمان جراند | H3: 1 | I3: ايناس عبدالحليم عيسى مصلح | K3: 944573112 | L3: 3846600 | M3: ال | N3: اياب | P3: غرفه رباعية
A4: 106 | B4: 31-12-2019 | C4: طيران | D4: 2 | E4: مجموعة ايناس الرام | F4: المركزية | G4: دار الايمان جراند | H4: 2 | I4: عيسى عبدالحليم عيسى غزاونه | K4: 850141037 | L4: 4123059 | M4: لي | N4: ل | P4: غرفه رباعية
A5: 106 | B5: 31-12-2019 | C5: طيران | D5: 2 | E5: مجموعة ايناس الرام | F5: المركزية | G5: دار الايمان جراند | H5: 3 | I5: هيا عبدالحليم عيسى حموده | K5: Y | L5: T339109 | M5: L | N5: L | P5: غرفه رباعية
A6: 106 | B6: 31-12-2019 | C6: طيران | D6: 2 | E6: مجموعة ايناس الرام | F6: المركزية | G6: دار الايمان جراند | H6: 4 | I6: منتهى عبدالحليم عيسى حجازي | K6: 1 | L6: T1059019 | M6: ن | N6: ن | P6: غرفه رباعية
A7: 106 | B7: 31-12-2019 | C7: طيران | D7: 2 | E7: مجموعة ايناس الرام | F7: المركزية | G7: دار الايمان جراند | H7: 5 | I7: ايه مازن مصطفى غزاونه | K7: 853896421 | L7: 4976725 | M7: م | N7: م | P7: غرفه رباعية
A8: 106 | B8: 31-12-2019 | C8: طيران | D8: 2 | E8: مجموعة ايناس الرام | F8: المركزية | G8: دار الايمان جراند | H8: 6 | I8: باسل انور شفيق عبد الحق | K8: 403355944 | L8: 4556495 | M8: ف | N8: ف | P8: غرفه رباعية
A9: 106 | B9: 31-12-2019 | C9: طيران | D9: 2 | E9: مجموعة ايناس الرام | F9: المركزية | G9: دار الايمان جراند | H9: 7 | I9: هيام ابراهيم حمدان غزاونه | L9: T357380 | M9: ف | N9: ف | P9: غرفه رباعية
A10: 106 | B10: 31-12-2019 | C10: طيران | D10: 2 | E10: مجموعة ايناس الرام | F10: المركزية | G10: دار الايمان جراند | H10: 8 | I10: امل اراهيم حمدان خطاب | L10: T249955 | M10: ف | N10: ف | P10: غرفه رباعية
A11: 106 | B11: 31-12-2019 | C11: طيران | D11: 2 | E11: مجموعة ايناس الرام | F11: المركزية | G11: دار الايمان جراند | H11: 9 | I11: مريم عيسى عبد الجبار ابو زاهريه | K11: 996303038 | L11: 3997428 | M11: ف | N11: ف | P11: غرفه رباعية
A12: 105 | B12: 31-12-2019 | C12: طيران | D12: 1 | E12: مجموعة الكومي | F12: المركزية | G12: دار الايمان جراند | H12: 1 | I12: حمزه جمال محمد الكومي | K12: 427415401 | L12: 4849289 | M12: ف | N12: ف | P12: غرفه رباعية
A13: 105 | B13: 31-12-2019 | C13: طيران | D13: 1 | E13: مجموعة الكومي | F13: المركزية | G13: دار الايمان جراند | H13: 2 | I13: محمد جمال محمد الكومي | K13: 430747643 | L13: 4849286 | M13: ف | N13: ف | P13: غرفه رباعية
A14: 105 | B14: 31-12-2019 | C14: طيران | D14: 1 | E14: مجموعة الكومي | F14: المركزية | G14: دار الايمان جراند | H14: 3 | I14: ملاك جمال محمد الكومي | K14: 408681732 | L14: 4847895 | M14: ف | N14: ف | P14: غرفه رباعية
A15: 105 | B15: 31-12-2019 | C15: طيران | D15: 1 | E15: مجموعة الكومي | F15: المركزية | G15: دار الايمان جراند | H15: 4 | I15: اسامه جمال محمد الكومي | K15: 420642878 | L15: 4848455 | M15: ف | N15: ف | P15: غرفه رباعية
A16: 105 | B16: 31-12-2019 | C16: طيران | D16: 1 | E16: مجموعة الكومي | F16: المركزية | G16: دار الايمان جراند | H16: 5 | I16: عبير محمد شاكر احمد الكومي | K16: 999847551 | L16: 4827804 | M16: ف | N16: ف | P16: غرفه رباعية
A17: 105 | B17: 31-12-2019 | C17: طيران | D17: 1 | E17: مجموعة الكومي | F17: المركزية | G17: دار الايمان جراند | H17: 6 | I17: جمال محمد حسن الكومي | K17: 943209619 | L17: 3882638 | M17: ف | N17: ف | P17: غرفه رباعية
A18: 105 | B18: 31-12-2019 | C18: طيران | D18: 1 | E18: مجموعة الكومي | F18: المركزية | G18: دار الايمان جراند | H18: 1 | I18: اية جمال محمد الكومي | K18: 406690594 | L18: 4847004 | M18: ف | N18: ف | P18: غرفه رباعية
A19: 105 | B19: 31-12-2019 | C19: طيران | D19: 1 | E19: مجموعة الكومي | F19: المركزية | G19: دار الايمان جراند | H19: 8 | I19: ابراهيم جمال محمد الكومي | K19: 420642886 | L19: 4848417 | M19: ف | N19: ف | P19: غرفه رباعية
A20: 101 | B20: 24-12-2019 | C20: طيران | D20: 1 | E20: دار خراز | F20: المركزية | G20: الجراند | H20: 3 | I20: نصر الله علي عبد الغني اقطش | K20: 911773208 | L20: 4339622 | M20: ف | N20: ف | P20: غرفة ثنائية
A21: 101 | B21: 24-12-2019 | C21: طيران | D21: 1 | E21: دار خراز | F21: المركزية | G21: الجراند | H21: 4 | I21: عزيزه جودت عبد العزيز اقطش | K21: 907129860 | L21: 4941012 | M21: ف | N21: ف | P21: غرفة ثنائية
A22: 101 | B22: 24-12-2019 | C22: طيران | D22: 1 | E22: دار خراز | F22: المركزية | G22: الجراند | H22: 5 | I22: سعيد حمدي محمد ابو مياله | L22: T303744 | M22: ف | N22: ف | P22: التاشيرة فقط
A23: 101 | B23: 24-12-2019 | C23: طيران | D23: 1 | E23: دار خراز | F23: المركزية | G23: الجراند | H23: 6 | I23: عبد الرحمن حمدي محمد ابو مياله | L23: T1070336 | M23: ف | N23: ف | P23: غرفه رباعية
A24: 101 | B24: 24-12-2019 | C24: طيران | D24: 1 | E24: دار خراز | F24: المركزية | G24: الجراند | H24: 7 | I24: طه حمي محمد ابو مياله | L24: T1070416 | M24: ف | N24: ف | P24: غرفه رباعية
A25: 101 | B25: 24-12-2019 | C25: طيران | D25: 1 | E25: دار خراز | F25: المركزية | G25: الجراند | H25: 8 | I25: جميله محمود علي ابو زعيتر | L25: T440341 | M25: ف | N25: ف | P25: غرفه رباعية
A26: 101 | B26: 24-12-2019 | C26: طيران | D26: 1 | E26: دار خراز | F26: المركزية | G26: الجراند | H26: 9 | I26: نجمه عيسى موسى ابو مياله | K26: 982063836 | L26: 4849536 | M26: ف | N26: ف | P26: غرفه رباعية
A27: 101 | B27: 24-12-2019 | C27: طيران | D27: 1 | E27: دار خراز | F27: المركزية | G27: الجراند | H27: 10 | I27: محي الدين حسن محمد عطاري | K27: 921602488 | L27: 3731908 | M27: ف | N27: ف | P27: غرفه رباعية
A28: 101 | B28: 24-12-2019 | C28: طيران | D28: 1 | E28: دار خراز | F28: المركزية | G28: الجراند | H28: 11 | I28: محاسن حسن محمد عطاري | K28: 903909281 | L28: 4151305 | M28: ف | N28: ف | P28: غرفه رباعية
A29: 101 | B29: 24-12-2019 | C29: طيران | D29: 1 | E29: دار خراز | F29: المركزية | G29: الجراند | H29: 12 | I29: نجمه حسن محمد كايد | K29: 953759578 | L29: 4154303 | M29: ف | N29: ف | P29: غرفه رباعية
A30: 101 | B30: 24-12-2019 | C30: طيران | D30: 1 | E30: دار خراز | F30: المركزية | G30: الجراند | H30: 13 | I30: هاله حسن محمد عطاري | L30: T365967 | M30: ف | N30: ف | P30: غرفه رباعية
A31: 101 | B31: 24-12-2019 | C31: طيران | D31: 1 | E31: دار خراز | F31: المركزية | G31: الجراند | H31: 14 | I31: محمد يوسف نجيب عوده | K31: 936548627 | L31: 4343806 | M31: ف | N31: ف | P31: غرفه رباعية
A32: 101 | B32: 24-12-2019 | C32: طيران | D32: 1 | E32: دار خراز | F32: المركزية | G32: الجراند | H32: 15 | I32: دلال هلال حسين بني شمسه | K32: 967807769 | L32: 4941998 | M32: ف | N32: ف | P32: غرفه رباعية
A33: 101 | B33: 24-12-2019 | C33: طيران | D33: 1 | E33: دار خراز | F33: المركزية | G33: الجراند | H33: 16 | I33: ضحى منذر عبد اللطيف بني شمسه | K33: 406414458 | L33: 4941997 | M33: ف | N33: ف | P33: غرفه رباعية
A34: 101 | B34: 24-12-2019 | C34: طيران | D34: 1 | E34: دار خراز | F34: المركزية | G34: الجراند | H34: 17 | I34: هلا منذر عبد اللطيف بني شمسه | K34: 422003848 | L34: 49411999 | M34: ف | N34: ف | P34: غرفه رباعية
A35: 101 | B35: 24-12-2019 | C35: طيران | D35: 1 | E35: دار خراز | F35: المركزية | G35: الجراند | H35: 18 | I35: منذر عبد اللطيف حسين بني شمسه | K35: 97470333 | L35: 4940696 | M35: ف | N35: ق | P35: غرفه رباعية
A36: 101 | B36: 24-12-2019 | C36: طيران | D36: 1 | E36: دار خراز | F36: المركزية | G36: الجراند | H36: 19 | I36: حامد سامر عثمان شرفه | K36: 854787777 | L36: 3948460 | M36: ف | N36: ف | P36: غرفه رباعية
A37: 101 | B37: 24-12-2019 | C37: طيران | D37: 1 | E37: دار خراز | F37: المركزية | G37: الجراند | H37: 20 | I37: عميد عامر وجيه عفونه | K37: 859894099 | L37: 3758369 | M37: ف | N37: ف | P37: غرفة ثلاثية
A38: 101 | B38: 24-12-2019 | C38: طيران | D38: 1 | E38: دار خراز | F38: المركزية | G38: الجراند | H38: 21 | I38: فتحي فايز احمد ياسين | K38: 987870714 | L38: 4943542 | M38: ف | N38: ف | P38: غرفة ثلاثية
A39: 101 | B39: 24-12-2019 | C39: طيران | D39: 1 | E39: دار خراز | F39: المركزية | G39: الجراند | H39: 22 | I39: شهنا سليمان محمود ياسين | K39: 987870722 | L39: 4943543 | M39: ف | N39: ف | P39: غرفة ثلاثية
A40: 101 | B40: 24-12-2019 | C40: طيران | D40: 1 | E40: دار خراز | F40: المركزية | G40: الجراند | H40: 23 | I40: كوثر فتحي فايز عنبتاوي | K40: 987870730 | L40: 4943905 | M40: ف | N40: ف | P40: غرفة ثلاثية
A41: 101 | B41: 24-12-2019 | C41: طيران | D41: 1 | E41: دار خراز | F41: المركزية | G41: الجراند | H41: 24 | I41: فاتن عامر وجيه عفونه | K41: 407645159 | L41: 4941235 | M41: ف | N41: ف | P41: غرفة ثلاثية
A42: 106 | B42: 31-12-2019 | C42: طيران | D42: 2 | E42: مجموعة ايناس الرام | F42: المركزية | G42: دار الايمان جراند | H42: 1 | I42: مريم فتحي فايز عفونة | K42: 987870763 | L42: 4941249 | M42: ف | N42: ف | P42: غرفة ثلاثية
A43: 101 | G43: dhh | H43: 1 | I43: samir | J43: hh | K43: 222 | L43: 55 | M43: ddd | N43: 23 فبراير 1900 | P43: غرفه رباعية

Sheet الرحلات (hidden)
A2: رقم الرحلة | B2: تاريخ الرحلة | C2: نوع الرحلة | D2: رقم الحافلة | E2: اسم المرشد | F2: فندق المدينة المنورة | G2: فندق مكة المكرمة
A3: 101 | B3: 24-12-2019 | C3: طيران | D3: 1 | E3: دار خراز | F3: المركزية | G3: الجراند
A4: 104 | B4: 2020-01-01 | C4: VIP | D4: 1 | F4: المركزية | G4: روضة البيت
A5: 105 | B5: 31-12-2019 | C5: طيران | D5: 1 | E5: مجموعة الكومي | F5: المركزية | G5: دار الايمان جراند
A6: 106 | B6: 31-12-2019 | C6: طيران | D6: 2 | E6: مجموعة ايناس الرام | F6: المركزية | G6: دار الايمان جراند

Sheet فواتير
A2: رقم الفاتورة | B2: تحرر في | C2: رقم الرحلة | D2: تاريخ الرحلة | E2: نوع الرحلة | F2: رقم الحافلة | G2: اسم المرشد | H2: فندق المدينة المنورة | I2: فندق مكة المكرمة | J2: القيمة | K2: الكمية | L2: السعر | M2: البيان | N2: ملاحظات | O2: الخصم | P2: الضريبة | Q2: الاجمالي | R2: تكويد الفواتير
A3: 1 | B3: 24/11/2019 | C3: 101 | D3: 25-9-2018 | E3: 101 | F3: 1 | G3: الايمان رويال | H3: الايمان رويال | I3: 1 | J3: 20 | K3: 10 | L3: 10 | M3: البيان | N3: ملاحظات | O3: 10 | P3: 41 | Q3: 547 | R3: m
A4: 1 | B4: 24/11/2019 | C4: 101 | D4: 25-9-2018 | E4: 101 | F4: 1 | G4: الايمان رويال | H4: الايمان رويال | I4: 1 | J4: 40 | K4: 20 | L4: 20 | M4: البيان2 | N4: ملاحظات2 | O4: 10 | P4: 41 | Q4: 547 | R4: m
A5: 1 | B5: 24/11/2019 | C5: 101 | D5: 25-9-2018 | E5: 101 | F5: 1 | G5: الايمان رويال | H5: الايمان رويال | I5: 1 | J5: 100 | K5: 50 | L5: 50 | M5: 5 | N5: 5 | O5: 10 | P5: 41 | Q5: 547 | R5: m
A6: 1 | B6: 24/11/2019 | C6: 101 | D6: 25-9-2018 | E6: 101 | F6: 1 | G6: الايمان رويال | H6: الايمان رويال | I6: 1 | J6: 120 | K6: 60 | L6: 60 | M6: 6 | N6: 6 | O6: 10 | P6: 41 | Q6: 547 | R6: m
A7: 1 | B7: 24/11/2019 | C7: 101 | D7: 25-9-2018 | E7: 101 | F7: 1 | G7: الايمان رويال | H7: الايمان رويال | I7: 1 | J7: 10 | K7: 5 | L7: 5 | M7: 5 | N7: 5 | O7: 10 | P7: 41 | Q7: 547 | R7: m
A8: 1 | B8: 24/11/2019 | C8: 101 | D8: 25-9-2018 | E8: 101 | F8: 1 | G8: الايمان رويال | H8: الايمان رويال | I8: 1 | J8: 12 | K8: 6 | L8: 6 | M8: 6 | N8: 6 | O8: 10 | P8: 41 | Q8: 547 | R8: m
A9: 1 | B9: 24/11/2019 | C9: 101 | D9: 25-9-2018 | E9: 101 | F9: 1 | G9: الايمان رويال | H9: الايمان رويال | I9: 1 | J9: 14 | K9: 7 | L9: 7 | M9: 7 | N9: 7 | O9: 10 | P9: 41 | Q9: 547 | R9: m
A10: 1 | B10: 24/11/2019 | C10: 101 | D10: 25-9-2018 | E10: 101 | F10: 1 | G10: الايمان رويال | H10: الايمان رويال | I10: 1 | J10: 16 | K10: 8 | L10: 8 | M10: 8 | N10: 8 | O10: 10 | P10: 41 | Q10: 547 | R10: m
A11: 1 | B11: 24/11/2019 | C11: 101 | D11: 25-9-2018 | E11: 101 | F11: 1 | G11: الايمان رويال | H11: الايمان رويال | I11: 1 | J11: 18 | K11: 9 | L11: 9 | M11: 9 | N11: 9 | O11: 10 | P11: 41 | Q11: 547 | R11: m
A12: 1 | B12: 24/11/2019 | C12: 101 | D12: 25-9-2018 | E12: 101 | F12: 1 | G12: الايمان رويال | H12: الايمان رويال | I12: 1 | J12: 20 | K12: 10 | L12: 10 | M12: 10 | N12: 10 | O12: 10 | P12: 41 | Q12: 547 | R12: m
A13: 1 | B13: 24/11/2019 | C13: 101 | D13: 25-9-2018 | E13: 101 | F13: 1 | G13: الايمان رويال | H13: الايمان رويال | I13: 1 | J13: 122 | K13: 11 | L13: 111 | M13: 11 | N13: 11 | O13: 10 | P13: 41 | Q13: 547 | R13: m
A14: 1 | B14: 24/11/2019 | C14: 101 | D14: 25-9-2018 | E14: 101 | F14: 1 | G14: الايمان رويال | H14: الايمان رويال | I14: 1 | J14: 24 | K14: 12 | L14: 12 | M14: 12 | N14: 12 | O14: 10 | P14: 41 | Q14: 547 | R14: m

Sheet تعريفات
A1: الشقق | B1: حسب المعتمر | C1: اسم المعتمر | D1: 101
A2: غرفه رباعية | B2: رجل | C2: نمر علي نمر خليل
A3: غرفة ثلاثية | B3: أمرأة | C3: انشراح جبر سليمان خليل
A4: غرفة ثنائية | B4: طفل | C4: نصر الله علي عبد الغني اقطش
A5: التاشيرة فقط | C5: عزيزه جودت عبد العزيز اقطش
A6: التاشيرة مع مقعد | C6: سعيد حمدي محمد ابو مياله
A7: غرفه رباعية مشارك | C7: عبد الرحمن حمدي محمد ابو مياله
A8: غرفة خماسية | C8: طه حمي محمد ابو مياله
A9: غرفه رباعية مشارك نساء | C9: جميله محمود علي ابو زعيتر
A10: غرفه رباعية مشارك رجال | C10: نجمه عيسى موسى ابو مياله
C11: محي الدين حسن محمد عطاري
C12: محاسن حسن محمد عطاري
C13: نجمه حسن محمد كايد
C14: هاله حسن محمد عطاري
C15: محمد يوسف نجيب عوده
C16: دلال هلال حسين بني شمسه
C17: ضحى منذر عبد اللطيف بني شمسه
C18: هلا منذر عبد اللطيف بني شمسه
C19: منذر عبد اللطيف حسين بني شمسه
C20: حامد سامر عثمان شرفه
C21: عميد عامر وجيه عفونه
C22: فتحي فايز احمد ياسين
C23: شهنا سليمان محمود ياسين
C24: كوثر فتحي فايز عنبتاوي
C25: فاتن عامر وجيه عفونه

Sheet التقرير (hidden)
A1: شـــركة XXXXXXXXX
A2: كشف اسماء المعتمرين
B3: رقم الرحلة | C3: تاريخ الرحلة | D3: نوع الرحلة | E3: رقم الحافلة | F3: اسم المرشد | G3: فندق المدينة | H3: فندق مكة
B4: 101 | C4: 24-12-2019 | D4: طيران | E4: 1 | F4: دار خراز | G4: المركزية | H4: الجراند
A5: م | B5: الاسم | C5: الجنسية | D5: رقم الهوية | E5: رقم الجواز | F5: نوع الخدمة | G5: المبيعات | H5: ملاحظات
A6: 1 | B6: نمر علي نمر خليل | D6: 904708666 | E6: 4141349 | F6: ف | G6: ف
A7: 2 | B7: انشراح جبر سليمان خليل | D7: 925062259 | E7: 4430252 | F7: ف | G7: ف
A8: 3 | B8: نصر الله علي عبد الغني اقطش | D8: 911773208 | E8: 4339622 | F8: ف | G8: ف
A9: 4 | B9: عزيزه جودت عبد العزيز اقطش | D9: 907129860 | E9: 4941012 | F9: ف | G9: ف
A10: 5 | B10: سعيد حمدي محمد ابو مياله | E10: T303744 | F10: ف | G10: ف
A11: 6 | B11: عبد الرحمن حمدي محمد ابو مياله | E11: T1070336 | F11: ف | G11: ف
A12: 7 | B12: طه حمي محمد ابو مياله | E12: T1070416 | F12: ف | G12: ف
A13: 8 | B13: جميله محمود علي ابو زعيتر | E13: T440341 | F13: ف | G13: ف
A14: 9 | B14: نجمه عيسى موسى ابو مياله | D14: 982063836 | E14: 4849536 | F14: ف | G14: ف
A15: 10 | B15: محي الدين حسن محمد عطاري | D15: 921602488 | E15: 3731908 | F15: ف | G15: ف
A16: 11 | B16: محاسن حسن محمد عطاري | D16: 903909281 | E16: 4151305 | F16: ف | G16: ف
A17: 12 | B17: نجمه حسن محمد كايد | D17: 953759578 | E17: 4154303 | F17: ف | G17: ف
A18: 13 | B18: هاله حسن محمد عطاري | E18: T365967 | F18: ف | G18: ف
A19: 14 | B19: محمد يوسف نجيب عوده | D19: 936548627 | E19: 4343806 | F19: ف | G19: ف
A20: 15 | B20: دلال هلال حسين بني شمسه | D20: 967807769 | E20: 4941998 | F20: ف | G20: ف
A21: 16 | B21: ضحى منذر عبد اللطيف بني شمسه | D21: 406414458 | E21: 4941997 | F21: ف | G21: ف
A22: 17 | B22: هلا منذر عبد اللطيف بني شمسه | D22: 422003848 | E22: 49411999 | F22: ف | G22: ف
A23: 18 | B23: منذر عبد اللطيف حسين بني شمسه | D23: 97470333 | E23: 4940696 | F23: ف | G23: ق
A24: 19 | B24: حامد سامر عثمان شرفه | D24: 854787777 | E24: 3948460 | F24: ف | G24: ف
A25: 20 | B25: عميد عامر وجيه عفونه | D25: 859894099 | E25: 3758369 | F25: ف | G25: ف
A26: 21 | B26: فتحي فايز احمد ياسين | D26: 987870714 | E26: 4943542 | F26: ف | G26: ف
A27: 22 | B27: شهنا سليمان محمود ياسين | D27: 987870722 | E27: 4943543 | F27: ف | G27: ف
A28: 23 | B28: كوثر فتحي فايز عنبتاوي | D28: 987870730 | E28: 4943905 | F28: ف | G28: ف
A29: 24 | B29: فاتن عامر وجيه عفونه | D29: 407645159 | E29: 4941235 | F29: ف | G29: ف

Sheet الدفعات (hidden)
A1: شـــركة ريتاج | J1: رقم الرحلة | K1: الاسم | L1: رقم الهوية | M1: تاريخ الدفعة | N1: قيمة الدفعة | O1: الرصيد المدفوع | P1: ملاحظات
A2: كشف بدفعات المعتمرين | J2: 101 | K2: انشراح جبر سليمان خليل | L2: 925062259
A3: م | B3: رقم الرحلة | C3: الاسم | D3: رقم الهوية | E3: تاريخ الدفعة | F3: قيمة الدفعة | G3: الرصيد المدفوع | H3: ملاحظات | J3: رقم الرحلة | K3: الاسم | L3: رقم الهوية | M3: تاريخ الدفعة | N3: قيمة الدفعة | O3: الرصيد المدفوع | P3: ملاحظات
A4: 1 | B4: 101 | C4: نمر علي نمر خليل | D4: 904708666 | E4: 2020-01-01 | F4: 100 | J4: 101 | K4: انشراح جبر سليمان خليل | L4: 925062259 | M4: 2020-01-02 | N4: 200
A5: 2 | B5: 101 | C5: انشراح جبر سليمان خليل | D5: 925062259 | E5: 2020-01-02 | F5: 200 | J5: 101 | K5: انشراح جبر سليمان خليل | L5: 925062259 | M5: 2020-01-11 | N5: 100
A6: 3 | B6: 101 | C6: نصر الله علي عبد الغني اقطش | D6: 911773208 | E6: 2020-01-03 | F6: 100 | J6: 101 | K6: انشراح جبر سليمان خليل | L6: 925062259 | M6: 2020-01-28 | N6: 150 | O6: 200500
A7: 4 | B7: 101 | C7: عزيزه جودت عبد العزيز اقطش | D7: 907129860 | E7: 2020-01-04 | F7: 300 | J7: 101 | K7: انشراح جبر سليمان خليل | L7: 925062259 | M7: 2020-01-29 | N7: 100 | O7: 200500
A8: 5 | B8: 101 | C8: سعيد حمدي محمد ابو مياله | D8: 904708666 | E8: 2020-01-05 | F8: 500 | J8: 101 | K8: انشراح جبر سليمان خليل | L8: 925062259 | M8: 2020-01-30 | N8: 200 | O8: 200500
A9: 6 | B9: 101 | C9: نصر الله علي عبد الغني اقطش | D9: 911773208 | E9: 2020-01-06 | F9: 100 | J9: 101 | K9: انشراح جبر سليمان خليل | L9: 925062259 | M9: 2020-01-31 | N9: 400 | O9: 200500
A10: 7 | B10: 101 | C10: طه حمي محمد ابو مياله | E10: 2020-01-07 | F10: 200 | J10: 101 | K10: انشراح جبر سليمان خليل | L10: 925062259 | M10: 2020-02-01 | N10: 500 | O10: 200500
A11: 8 | B11: 101 | C11: جميله محمود علي ابو زعيتر | E11: 2020-01-08 | F11: 100 | J11: 101 | K11: انشراح جبر سليمان خليل | L11: 925062259 | M11: 2020-02-02 | N11: 120 | O11: 200500
A12: 9 | B12: 101 | C12: نجمه عيسى موسى ابو مياله | D12: 982063836 | E12: 2020-01-09 | F12: 300 | J12: 101 | K12: انشراح جبر سليمان خليل | L12: 925062259 | M12: 2020-02-03 | N12: 130 | O12: 200500
A13: 10 | B13: 101 | C13: محي الدين حسن محمد عطاري | D13: 921602488 | E13: 2020-01-10 | F13: 500 | J13: 101 | K13: انشراح جبر سليمان خليل | L13: 925062259 | M13: 2020-02-04 | N13: 140 | O13: 200500
A14: 11 | B14: 101 | C14: انشراح جبر سليمان خليل | D14: 925062259 | E14: 2020-01-11 | F14: 100 | J14: 101 | K14: انشراح جبر سليمان خليل | L14: 925062259 | M14: 2020-02-05 | N14: 150 | O14: 200500
A15: 12 | B15: 101 | C15: نجمه حسن محمد كايد | D15: 953759578 | E15: 2020-01-12 | F15: 200 | J15: 101 | K15: انشراح جبر سليمان خليل | L15: 925062259 | M15: 2020-02-06 | N15: 160 | O15: 200500
A16: 13 | B16: 101 | C16: هاله حسن محمد عطاري | E16: 2020-01-13 | F16: 100 | J16: 101 | K16: انشراح جبر سليمان خليل | L16: 925062259 | M16: 2020-02-07 | N16: 170 | O16: 200500
A17: 14 | B17: 101 | C17: محمد يوسف نجيب عوده | D17: 936548627 | E17: 2020-01-14 | F17: 300 | J17: 101 | K17: انشراح جبر سليمان خليل | L17: 925062259 | M17: 2020-02-08 | N17: 180 | O17: 200500
A18: 15 | B18: 101 | C18: دلال هلال حسين بني شمسه | D18: 967807769 | E18: 2020-01-15 | F18: 500 | M18: الاجمالي | N18: 2700
A19: 16 | B19: 102 | C19: ضحى منذر عبد اللطيف بني شمسه | D19: 406414458 | E19: 2020-01-16 | F19: 100
A20: 17 | B20: 102 | C20: هلا منذر عبد اللطيف بني شمسه | D20: 422003848 | E20: 2020-01-17 | F20: 200
A21: 18 | B21: 102 | C21: منذر عبد اللطيف حسين بني شمسه | D21: 97470333 | E21: 2020-01-18 | F21: 100
A22: 19 | B22: 102 | C22: حامد سامر عثمان شرفه | D22: 854787777 | E22: 2020-01-19 | F22: 300
A23: 20 | B23: 102 | C23: عميد عامر وجيه عفونه | D23: 859894099 | E23: 2020-01-20 | F23: 500
A24: 21 | B24: 102 | C24: فتحي فايز احمد ياسين | D24: 987870714 | E24: 2020-01-21 | F24: 100
A25: 22 | B25: 102 | C25: شهنا سليمان محمود ياسين | D25: 987870722 | E25: 2020-01-22 | F25: 200
A26: 23 | B26: 102 | C26: كوثر فتحي فايز عنبتاوي | D26: 987870730 | E26: 2020-01-23 | F26: 100
A27: 24 | B27: 102 | C27: فاتن عامر وجيه عفونه | D27: 407645159 | E27: 2020-01-24 | F27: 300
A28: 25 | B28: 101 | C28: سعيد حمدي محمد ابو مياله | D28: 9000 | E28: 20-7-2020 | F28: 1500 | G28: 1500
A29: 26 | B29: 105 | C29: حمزه جمال محمد الكومي | D29: 427415401 | E29: 2020-01-26 | F29: 8000 | G29: 8000
A30: 27 | B30: 102 | C30: رلاليلايبلايبئ | D30: 25725727 | E30: 2020-01-27 | F30: 5000 | G30: 5000
A31: 28 | B31: 101 | C31: انشراح جبر سليمان خليل | D31: 925062259 | E31: 2020-01-28 | F31: 150 | G31: 200500
A32: 29 | B32: 101 | C32: انشراح جبر سليمان خليل | D32: 925062259 | E32: 2020-01-29 | F32: 100 | G32: 200500
A33: 30 | B33: 101 | C33: انشراح جبر سليمان خليل | D33: 925062259 | E33: 2020-01-30 | F33: 200 | G33: 200500
A34: 31 | B34: 101 | C34: انشراح جبر سليمان خليل | D34: 925062259 | E34: 2020-01-31 | F34: 400 | G34: 200500
A35: 32 | B35: 101 | C35: انشراح جبر سليمان خليل | D35: 925062259 | E35: 2020-02-01 | F35: 500 | G35: 200500
A36: 33 | B36: 101 | C36: انشراح جبر سليمان خليل | D36: 925062259 | E36: 2020-02-02 | F36: 120 | G36: 200500
A37: 34 | B37: 101 | C37: انشراح جبر سليمان خليل | D37: 925062259 | E37: 2020-02-03 | F37: 130 | G37: 200500
A38: 35 | B38: 101 | C38: انشراح جبر سليمان خليل | D38: 925062259 | E38: 2020-02-04 | F38: 140 | G38: 200500
A39: 36 | B39: 101 | C39: انشراح جبر سليمان خليل | D39: 925062259 | E39: 2020-02-05 | F39: 150 | G39: 200500
A40: 37 | B40: 101 | C40: انشراح جبر سليمان خليل | D40: 925062259 | E40: 2020-02-06 | F40: 160 | G40: 200500
A41: 38 | B41: 101 | C41: انشراح جبر سليمان خليل | D41: 925062259 | E41: 2020-02-07 | F41: 170 | G41: 200500
A42: 39 | B42: 101 | C42: انشراح جبر سليمان خليل | D42: 925062259 | E42: 2020-02-08 | F42: 180 | G42: 200500
A43: 40 | B43: 106 | C43: ايناس عبدالحليم عيسى مصلح | D43: 944573112 | E43: 20-7-2020 | F43: 10000 | G43: =SUMPRODUCT(($D$4:D43=D43)*$F$4:F43) -> 10000

Sheet Invoice (hidden)
C1: شركة ريتاج
D7: رقم الرحلة | E7: 106
C8: التاريخ | D8: 2020-03-01 | E8: فندق المدينة
C9: نوع الرحلة | D9: VIP | E9: رقم الحافلة | F9: 3
B11: # | C11: الغرفة الثنائية | D11: الغرفة الثلاثية | E11: الغرفة الرباعية | F11: الغرفة الخماسية | G11: الغرفة السداسية | L11: نوع الغرفة
B13: =IF(COUNTA($C13:$G13)=0,"",MAX($B$12:B12)+1) -> 1 | C13: ايناس عبدالحليم عيسى مصلح | D13: هيا عبدالحليم عيسى حموده | E13: ايه مازن مصطفى غزاونه | F13: مريم عيسى عبد الجبار ابو زاهريه | G13: عيسى عبدالحليم عيسى غزاونه | I13: 1 | J13: ايناس عبدالحليم عيسى مصلح | L13: 2 | Y13: kl
B14: =IF(COUNTA($C14:$G14)=0,"",MAX($B$12:B13)+1) -> 2 | C14: امل اراهيم حمدان خطاب | D14: هيام ابراهيم حمدان غزاونه | E14: باسل انور شفيق عبد الحق | F14: مريم فتحي فايز عفونة | G14: منتهى عبدالحليم عيسى حجازي | I14: 2 | J14: عيسى عبدالحليم عيسى غزاونه | L14: 6
B15: =IF(COUNTA($C15:$G15)=0,"",MAX($B$12:B14)+1) ->  | I15: 3 | J15: هيا عبدالحليم عيسى حموده | L15: 3
B16: =IF(COUNTA($C16:$G16)=0,"",MAX($B$12:B15)+1) ->  | I16: 4 | J16: منتهى عبدالحليم عيسى حجازي | L16: 6
B17: =IF(COUNTA($C17:$G17)=0,"",MAX($B$12:B16)+1) ->  | I17: 5 | J17: ايه مازن مصطفى غزاونه | L17: 4
B18: =IF(COUNTA($C18:$G18)=0,"",MAX($B$12:B17)+1) ->  | I18: 6 | J18: باسل انور شفيق عبد الحق | L18: 4
B19: =IF(COUNTA($C19:$G19)=0,"",MAX($B$12:B18)+1) ->  | I19: 7 | J19: هيام ابراهيم حمدان غزاونه | L19: 3
B20: =IF(COUNTA($C20:$G20)=0,"",MAX($B$12:B19)+1) ->  | I20: 8 | J20: امل اراهيم حمدان خطاب | L20: 2
B21: =IF(COUNTA($C21:$G21)=0,"",MAX($B$12:B20)+1) ->  | I21: 9 | J21: مريم عيسى عبد الجبار ابو زاهريه | L21: 5
B22: =IF(COUNTA($C22:$G22)=0,"",MAX($B$12:B21)+1) ->  | I22: 10 | J22: مريم فتحي فايز عفونة | L22: 5
B23: =IF(COUNTA($C23:$G23)=0,"",MAX($B$12:B22)+1) ->  | L23: 6
B24: =IF(COUNTA($C24:$G24)=0,"",MAX($B$12:B23)+1) ->  | L24: 3
B25: =IF(COUNTA($C25:$G25)=0,"",MAX($B$12:B24)+1) ->  | L25: 6
B26: =IF(COUNTA($C26:$G26)=0,"",MAX($B$12:B25)+1) ->  | L26: 4
B27: =IF(COUNTA($C27:$G27)=0,"",MAX($B$12:B26)+1) ->  | L27: 3
B28: =IF(COUNTA($C28:$G28)=0,"",MAX($B$12:B27)+1) ->  | L28: 3
B29: =IF(COUNTA($C29:$G29)=0,"",MAX($B$12:B28)+1) ->  | L29: 4
B30: =IF(COUNTA($C30:$G30)=0,"",MAX($B$12:B29)+1) ->  | L30: 6
B31: =IF(COUNTA($C31:$G31)=0,"",MAX($B$12:B30)+1) ->  | L31: 2
B32: =IF(COUNTA($C32:$G32)=0,"",MAX($B$12:B31)+1) ->  | L32: 3
L33: 2
L34: 4
L35: 2
L36: 6
L37: 5
L38: 3
L39: 5
L40: 2
L41: 6
L42: 2
L43: 3
L44: 6
L45: 3
L46: 5
L47: 6
L48: 4
L49: 3
L50: 4
L51: 4
L52: 5
L53: 5
L54: 6
L55: 3
L56: 4
L57: 6
L58: 3
L59: 2
L60: 5
L61: 2
L62: 3
L63: 4
L64: 6
L65: 3
L66: 6
L67: 6
L68: 5
L69: 6

Sheet Data (hidden)
B3: رقم الرحلة | C3: تاريخ الرحلة | D3: نوع الرحلة | E3: رقم الحافلة | F3: اسم المرشد | G3: الغرفة الثنائية | H3: الغرفة الثلاثية | I3: الغرفة الرباعية | J3: الغرفة الخماسية | K3: التاشيرة
B4: 105 | C4: 2020-03-01 | D4: VIP | E4: 3 | G4: حمزه جمال محمد الكومي | H4: اية جمال محمد الكومي | I4: عبير محمد شاكر احمد الكومي | K4: محمد جمال محمد الكومي
B5: 105 | C5: 2020-03-01 | D5: VIP | E5: 3 | G5: ملاك جمال محمد الكومي | I5: جمال محمد حسن الكومي | K5: اسامه جمال محمد الكومي
B6: 105 | C6: 2020-03-01 | D6: VIP | E6: 3 | G6: ابراهيم جمال محمد الكومي
B7: 101 | C7: 2020-03-01 | D7: VIP | E7: 3 | G7: نمر علي نمر خليل | H7: نصر الله علي عبد الغني اقطش | I7: سعيد حمدي محمد ابو مياله | J7: نجمه عيسى موسى ابو مياله | K7: انشراح جبر سليمان خليل
B8: 101 | C8: 2020-03-01 | D8: VIP | E8: 3 | G8: جميله محمود علي ابو زعيتر | H8: طه حمي محمد ابو مياله | I8: عبد الرحمن حمدي محمد ابو مياله | J8: محي الدين حسن محمد عطاري | K8: عزيزه جودت عبد العزيز اقطش
B9: 101 | C9: 2020-03-01 | D9: VIP | E9: 3 | G9: حامد سامر عثمان شرفه | H9: نجمه حسن محمد كايد | I9: محمد يوسف نجيب عوده | J9: samir | K9: محاسن حسن محمد عطاري
B10: 101 | C10: 2020-03-01 | D10: VIP | E10: 3 | G10: فتحي فايز احمد ياسين | H10: دلال هلال حسين بني شمسه | I10: هلا منذر عبد اللطيف بني شمسه | K10: هاله حسن محمد عطاري
B11: 101 | C11: 2020-03-01 | D11: VIP | E11: 3 | G11: كوثر فتحي فايز عنبتاوي | H11: ضحى منذر عبد اللطيف بني شمسه | I11: شهنا سليمان محمود ياسين | K11: منذر عبد اللطيف حسين بني شمسه
B12: 101 | C12: 2020-03-01 | D12: VIP | E12: 3 | H12: عميد عامر وجيه عفونه | K12: فاتن عامر وجيه عفونه
B13: 106 | C13: 2020-03-01 | D13: VIP | E13: 3 | G13: ايناس عبدالحليم عيسى مصلح | H13: هيا عبدالحليم عيسى حموده | I13: ايه مازن مصطفى غزاونه | J13: مريم عيسى عبد الجبار ابو زاهريه | K13: عيسى عبدالحليم عيسى غزاونه
B14: 106 | C14: 2020-03-01 | D14: VIP | E14: 3 | G14: امل اراهيم حمدان خطاب | H14: هيام ابراهيم حمدان غزاونه | I14: باسل انور شفيق عبد الحق | J14: مريم فتحي فايز عفونة | K14: منتهى عبدالحليم عيسى حجازي

Sheet بيان العملاء
C1: اسم العملاء
M2: 1009845134
M3: رشاد سعودي
B6: الكود | C6: اسم العميل | D6: العنوان | E6: رقم الموبايل | F6: رصيد مدين | G6: رصيد دائن
B7: =IF(C7<>"",1001,"") -> 1001 | C7: احمد جمال سيد ع المطلب | F7: 300 | G7: 300
B8: =IF(C8<>"",B7+1,"") -> 1002 | C8: احمد صبحي صالح | F8: 400 | G8: 400
B9: 1003 | C9: سامح علي خالد | F9: 500 | G9: 500
B10: 1004 | C10: سعيد محمد عودة | F10: 600 | G10: 600
B11: 1005 | C11: سنية فكري ابراهيم | F11: 700 | G11: 700
B12: 1006 | C12: سيد محمد ابوصبيح | F12: 3000 | G12: 6
B13: 1007 | C13: صلاح صلاح ع الحميد طه | F13: 3000 | G13: 7
B14: 1008 | C14: صلاح محمد ابوخريبة | F14: 3000 | G14: 8
B15: 1009 | C15: عصام خيري محمد | F15: 4900 | G15: 9
B16: 1010 | C16: ق سحر محمود ابراهيم | F16: 950 | G16: 10
B17: 1011 | C17: ق سعد سمير الروبي | F17: 1300 | G17: 11
B18: 1012 | C18: احمد حسن محمود | D18: المطرية | F18: 650 | G18: 12
B19: 1013 | C19: حسام صديق | D19: عين شمس | F19: 200 | G19: 13
B20: 1014 | C20: غزال حامد | D20: الحلمية | F20: 1250 | G20: 14
B21: 1015 | C21: محمود ع المنعم | D21: الحلمية | E21: 11 | F21: 2500 | G21: 15
B22: 1016 | C22: محمد جمال سيد عبدالمطلب | F22: 1300 | G22: 16
B23: 1017 | C23: محمد ع العزيز جيش | F23: 4125 | G23: 17
B24: 1018 | C24: محمد عبدالله مختار | F24: 1375 | G24: 18
B25: 1019 | C25: نهلة السيد عليوة ذكي | F25: 1900 | G25: 19
B26: 1020 | C26: سك احمد عطا ابراهيم | F26: 8850 | G26: 20
B27: 1021 | C27: سك ابراهيم عطا ابراهيم | F27: 8950 | G27: 21
B28: 1022 | C28: سك محمود طه عبدالفتاح | F28: 8825 | G28: 22
B29: 1023 | C29: سك كامل سيد احمد كامل | F29: 7675 | G29: 23
B30: 1024 | C30: سك رشاد ابواليزيد عبدالمقصود | F30: 8550 | G30: 24
B31: 1025 | C31: سك ياسر عيد قوشتي | F31: 9500 | G31: 25
B32: 1026 | C32: سك عبدالنبي محمد محمد علي | F32: 9500 | G32: 26
B33: 1027 | C33: سك عيد محمد عمر عبدالواحد | F33: 9500 | G33: 27
B34: 1028 | C34: سك ايمن متولي احمد متولي | F34: 27450 | G34: 28
B35: 1029 | C35: وليد احمد خليل | F35: 800 | G35: 29
B36: 1030 | C36: ام امنية حسن | F36: 4000 | G36: 30
B37: 1031 | C37: احمد عبدالنبي | D37: م نصر | F37: 2400 | G37: 31
B38: 1032 | C38: جمال محمد عبداللطيف | D38: م نصر | F38: 1550 | G38: 32
B39: 1033 | C39: فايز | F39: 50000 | G39: 33
B40: 1034 | C40: يوسف | F40: 500 | G40: 34
B41: 1035 | C41: علي | G41: 35
G42: 36
G43: 37
G44: 38
G45: 39
G46: 40
G47: 41
G48: 42
G49: 43
G50: 44
G51: 45
G52: 46
G53: 47
G54: 48
G55: 49
G56: 50
G57: 51
G58: 52
G59: 53
G60: 54
G61: 55
G62: 56
G63: 57
G64: 58
G65: 59
G66: 60
G67: 61
G68: 62
G69: 63
G70: 64
G71: 65
B72: =IF(C72<>"",B71+1,"") ->  | G72: 66
G73: 67
G74: 68
G75: 69
G76: 70
G77: 71
G78: 72
G79: 73
G80: 74
G81: 75
G82: 76
G83: 77
G84: 78
G85: 79
G86: 80
G87: 81
G88: 82
G89: 83
G90: 84
G91: 85
G92: 86
G93: 87
G94: 88
G95: 89
G96: 90
G97: 91
G98: 92
G99: 93
G100: 94
G101: 95
G102: 96
G103: 97
G104: 98
G105: 99
G106: 100
G107: 101
G108: 102
G109: 103
G110: 104
G111: 105
G112: 106
G113: 107
G114: 108
G115: 109
G116: 110
G117: 111
G118: 112
G119: 113
G120: 114
G121: 115
G122: 116
G123: 117
G124: 118
G125: 119
G126: 120
G127: 121
G128: 122
G129: 123
G130: 124
G131: 125
G132: 126
G133: 127
G134: 128
G135: 129
B136: =IF(C136<>"",B135+1,"") ->  | G136: 130
G137: 131
G138: 132
G139: 133
G140: 134
G141: 135
G142: 136
G143: 137
G144: 138
G145: 139
G146: 140
G147: 141
G148: 142
G149: 143
G150: 144
G151: 145
G152: 146
G153: 147
G154: 148
G155: 149
G156: 150
G157: 151
G158: 152
G159: 153
G160: 154
G161: 155
G162: 156
G163: 157
G164: 158
G165: 159
G166: 160
G167: 161
G168: 162
G169: 163
G170: 164

Sheet حركة العملاء
D6: الكود | E6: اسم العميل | F6: التاريخ | G6: بيان الحركة | H6: مدين | I6: دائن
B7: =IF(C7="","",COUNTIF($C$7:C7,C7)) ->  | C7: =IF(AND('[1]كشف حساب'!$F$5&'[1]كشف حساب'!$F$6="")*AND(D7='[1]كشف حساب'!$B$5),1,IF(AND(F7>='[1]كشف حساب'!$F$5,'حركة العملاء'!F7<='[1]كشف حساب'!$F$6)*AND(D7='[1]كشف حساب'!$B$5),1,"")) ->  | D7: 1001 | E7: =IFERROR(VLOOKUP(D7,'بيان العملاء'!$B$7:$J$170,2,0),"") -> احمد جمال سيد ع المطلب | F7: 2019-05-01 | G7: سداد | H7: =IFERROR(VLOOKUP(D7,'بيان العملاء'!$B$7:$J$170,5,0),"") -> 300 | I7: =IFERROR(VLOOKUP(D7,'بيان العملاء'!$B$7:$J$170,6,0),"") -> 300
B8: =IF(C8="","",COUNTIF($C$7:C8,C8)) ->  | C8: =IF(AND('[1]كشف حساب'!$F$5&'[1]كشف حساب'!$F$6="")*AND(D8='[1]كشف حساب'!$B$5),1,IF(AND(F8>='[1]كشف حساب'!$F$5,'حركة العملاء'!F8<='[1]كشف حساب'!$F$6)*AND(D8='[1]كشف حساب'!$B$5),1,"")) ->  | D8: 1002 | E8: =IFERROR(VLOOKUP(D8,'بيان العملاء'!$B$7:$J$170,2,0),"") -> احمد صبحي صالح | F8: 2019-05-04 | G8: شراء موبايل هواوي y6 | H8: =IFERROR(VLOOKUP(D8,'بيان العملاء'!$B$7:$J$170,5,0),"") -> 400 | I8: =IFERROR(VLOOKUP(D8,'بيان العملاء'!$B$7:$J$170,6,0),"") -> 400
B9: =IF(C9="","",COUNTIF($C$7:C9,C9)) ->  | C9: =IF(AND('[1]كشف حساب'!$F$5&'[1]كشف حساب'!$F$6="")*AND(D9='[1]كشف حساب'!$B$5),1,IF(AND(F9>='[1]كشف حساب'!$F$5,'حركة العملاء'!F9<='[1]كشف حساب'!$F$6)*AND(D9='[1]كشف حساب'!$B$5),1,"")) ->  | D9: 1003 | E9: =IFERROR(VLOOKUP(D9,'بيان العملاء'!$B$7:$J$170,2,0),"") -> سامح علي خالد | F9: 2019-05-06 | G9: سداد | H9: =IFERROR(VLOOKUP(D9,'بيان العملاء'!$B$7:$J$170,5,0),"") -> 500 | I9: =IFERROR(VLOOKUP(D9,'بيان العملاء'!$B$7:$J$170,6,0),"") -> 500
B10: =IF(C10="","",COUNTIF($C$7:C10,C10)) ->  | C10: =IF(AND('[1]كشف حساب'!$F$5&'[1]كشف حساب'!$F$6="")*AND(D10='[1]كشف حساب'!$B$5),1,IF(AND(F10>='[1]كشف حساب'!$F$5,'حركة العملاء'!F10<='[1]كشف حساب'!$F$6)*AND(D10='[1]كشف حساب'!$B$5),1,"")) ->  | D10: 1004 | E10: =IFERROR(VLOOKUP(D10,'بيان العملاء'!$B$7:$J$170,2,0),"") -> سعيد محمد عودة | F10: 2019-05-08 | G10: شراء شاشة | H10: =IFERROR(VLOOKUP(D10,'بيان العملاء'!$B$7:$J$170,5,0),"") -> 600 | I10: =IFERROR(VLOOKUP(D10,'بيان العملاء'!$B$7:$J$170,6,0),"") -> 600
B11: =IF(C11="","",COUNTIF($C$7:C11,C11)) ->  | C11: =IF(AND('[1]كشف حساب'!$F$5&'[1]كشف حساب'!$F$6="")*AND(D11='[1]كشف حساب'!$B$5),1,IF(AND(F11>='[1]كشف حساب'!$F$5,'حركة العملاء'!F11<='[1]كشف حساب'!$F$6)*AND(D11='[1]كشف حساب'!$B$5),1,"")) ->  | D11: 1005 | E11: =IFERROR(VLOOKUP(D11,'بيان العملاء'!$B$7:$J$170,2,0),"") -> سنية فكري ابراهيم | F11: 2020-11-01 | G11: ييسبؤسؤسش | H11: =IFERROR(VLOOKUP(D11,'بيان العملاء'!$B$7:$J$170,5,0),"") -> 700 | I11: =IFERROR(VLOOKUP(D11,'بيان العملاء'!$B$7:$J$170,6,0),"") -> 700
B12: =IF(C12="","",COUNTIF($C$7:C12,C12)) ->  | C12: =IF(AND('[1]كشف حساب'!$F$5&'[1]كشف حساب'!$F$6="")*AND(D12='[1]كشف حساب'!$B$5),1,IF(AND(F12>='[1]كشف حساب'!$F$5,'حركة العملاء'!F12<='[1]كشف حساب'!$F$6)*AND(D12='[1]كشف حساب'!$B$5),1,"")) ->  | D12: 1006 | E12: =IFERROR(VLOOKUP(D12,'بيان العملاء'!$B$7:$J$170,2,0),"") -> سيد محمد ابوصبيح | F12: 2020-11-01 | G12: ليلريبرسيؤس\ؤ\ | H12: =IFERROR(VLOOKUP(D12,'بيان العملاء'!$B$7:$J$170,5,0),"") -> 3000 | I12: =IFERROR(VLOOKUP(D12,'بيان العملاء'!$B$7:$J$170,6,0),"") -> 6
B13: =IF(C13="","",COUNTIF($C$7:C13,C13)) ->  | C13: =IF(AND('[1]كشف حساب'!$F$5&'[1]كشف حساب'!$F$6="")*AND(D13='[1]كشف حساب'!$B$5),1,IF(AND(F13>='[1]كشف حساب'!$F$5,'حركة العملاء'!F13<='[1]كشف حساب'!$F$6)*AND(D13='[1]كشف حساب'!$B$5),1,"")) ->  | D13: 1007 | E13: =IFERROR(VLOOKUP(D13,'بيان العملاء'!$B$7:$J$170,2,0),"") -> صلاح صلاح ع الحميد طه | F13: 2020-11-03 | H13: =IFERROR(VLOOKUP(D13,'بيان العملاء'!$B$7:$J$170,5,0),"") -> 3000 | I13: =IFERROR(VLOOKUP(D13,'بيان العملاء'!$B$7:$J$170,6,0),"") -> 7
B14: =IF(C14="","",COUNTIF($C$7:C14,C14)) ->  | C14: =IF(AND('[1]كشف حساب'!$F$5&'[1]كشف حساب'!$F$6="")*AND(D14='[1]كشف حساب'!$B$5),1,IF(AND(F14>='[1]كشف حساب'!$F$5,'حركة العملاء'!F14<='[1]كشف حساب'!$F$6)*AND(D14='[1]كشف حساب'!$B$5),1,"")) ->  | D14: 1008 | E14: =IFERROR(VLOOKUP(D14,'بيان العملاء'!$B$7:$J$170,2,0),"") -> صلاح محمد ابوخريبة | H14: =IFERROR(VLOOKUP(D14,'بيان العملاء'!$B$7:$J$170,5,0),"") -> 3000 | I14: =IFERROR(VLOOKUP(D14,'بيان العملاء'!$B$7:$J$170,6,0),"") -> 8
B15: =IF(C15="","",COUNTIF($C$7:C15,C15)) ->  | C15: =IF(AND('[1]كشف حساب'!$F$5&'[1]كشف حساب'!$F$6="")*AND(D15='[1]كشف حساب'!$B$5),1,IF(AND(F15>='[1]كشف حساب'!$F$5,'حركة العملاء'!F15<='[1]كشف حساب'!$F$6)*AND(D15='[1]كشف حساب'!$B$5),1,"")) ->  | D15: 1009 | E15: =IFERROR(VLOOKUP(D15,'بيان العملاء'!$B$7:$J$170,2,0),"") -> عصام خيري محمد | H15: =IFERROR(VLOOKUP(D15,'بيان العملاء'!$B$7:$J$170,5,0),"") -> 4900 | I15: =IFERROR(VLOOKUP(D15,'بيان العملاء'!$B$7:$J$170,6,0),"") -> 9
B16: =IF(C16="","",COUNTIF($C$7:C16,C16)) ->  | C16: =IF(AND('[1]كشف حساب'!$F$5&'[1]كشف حساب'!$F$6="")*AND(D16='[1]كشف حساب'!$B$5),1,IF(AND(F16>='[1]كشف حساب'!$F$5,'حركة العملاء'!F16<='[1]كشف حساب'!$F$6)*AND(D16='[1]كشف حساب'!$B$5),1,"")) ->  | D16: 1011 | E16: =IFERROR(VLOOKUP(D16,'بيان العملاء'!$B$7:$J$170,2,0),"") -> ق سعد سمير الروبي | H16: =IFERROR(VLOOKUP(D16,'بيان العملاء'!$B$7:$J$170,5,0),"") -> 1300 | I16: =IFERROR(VLOOKUP(D16,'بيان العملاء'!$B$7:$J$170,6,0),"") -> 11
B17: =IF(C17="","",COUNTIF($C$7:C17,C17)) ->  | C17: =IF(AND('[1]كشف حساب'!$F$5&'[1]كشف حساب'!$F$6="")*AND(D17='[1]كشف حساب'!$B$5),1,IF(AND(F17>='[1]كشف حساب'!$F$5,'حركة العملاء'!F17<='[1]كشف حساب'!$F$6)*AND(D17='[1]كشف حساب'!$B$5),1,"")) ->  | D17: 1003 | E17: =IFERROR(VLOOKUP(D17,'بيان العملاء'!$B$7:$J$170,2,0),"") -> سامح علي خالد | H17: =IFERROR(VLOOKUP(D17,'بيان العملاء'!$B$7:$J$170,5,0),"") -> 500 | I17: =IFERROR(VLOOKUP(D17,'بيان العملاء'!$B$7:$J$170,6,0),"") -> 500
B18: =IF(C18="","",COUNTIF($C$7:C18,C18)) ->  | C18: =IF(AND('[1]كشف حساب'!$F$5&'[1]كشف حساب'!$F$6="")*AND(D18='[1]كشف حساب'!$B$5),1,IF(AND(F18>='[1]كشف حساب'!$F$5,'حركة العملاء'!F18<='[1]كشف حساب'!$F$6)*AND(D18='[1]كشف حساب'!$B$5),1,"")) ->  | D18: 1034 | E18: =IFERROR(VLOOKUP(D18,'بيان العملاء'!$B$7:$J$170,2,0),"") -> يوسف | H18: =IFERROR(VLOOKUP(D18,'بيان العملاء'!$B$7:$J$170,5,0),"") -> 500 | I18: =IFERROR(VLOOKUP(D18,'بيان العملاء'!$B$7:$J$170,6,0),"") -> 34
B19: =IF(C19="","",COUNTIF($C$7:C19,C19)) ->  | C19: =IF(AND('[1]كشف حساب'!$F$5&'[1]كشف حساب'!$F$6="")*AND(D19='[1]كشف حساب'!$B$5),1,IF(AND(F19>='[1]كشف حساب'!$F$5,'حركة العملاء'!F19<='[1]كشف حساب'!$F$6)*AND(D19='[1]كشف حساب'!$B$5),1,"")) ->  | D19: 1035 | E19: =IFERROR(VLOOKUP(D19,'بيان العملاء'!$B$7:$J$170,2,0),"") -> علي | H19: =IFERROR(VLOOKUP(D19,'بيان العملاء'!$B$7:$J$170,5,0),"") -> 0 | I19: =IFERROR(VLOOKUP(D19,'بيان العملاء'!$B$7:$J$170,6,0),"") -> 35
B20: =IF(C20="","",COUNTIF($C$7:C20,C20)) ->  | C20: =IF(AND('[1]كشف حساب'!$F$5&'[1]كشف حساب'!$F$6="")*AND(D20='[1]كشف حساب'!$B$5),1,IF(AND(F20>='[1]كشف حساب'!$F$5,'حركة العملاء'!F20<='[1]كشف حساب'!$F$6)*AND(D20='[1]كشف حساب'!$B$5),1,"")) ->  | E20: =IFERROR(VLOOKUP(D20,'بيان العملاء'!$B$7:$J$170,2,0),"") ->  | H20: =IFERROR(VLOOKUP(D20,'بيان العملاء'!$B$7:$J$170,5,0),"") ->  | I20: =IFERROR(VLOOKUP(D20,'بيان العملاء'!$B$7:$J$170,6,0),"") -> 
B21: =IF(C21="","",COUNTIF($C$7:C21,C21)) ->  | C21: =IF(AND('[1]كشف حساب'!$F$5&'[1]كشف حساب'!$F$6="")*AND(D21='[1]كشف حساب'!$B$5),1,IF(AND(F21>='[1]كشف حساب'!$F$5,'حركة العملاء'!F21<='[1]كشف حساب'!$F$6)*AND(D21='[1]كشف حساب'!$B$5),1,"")) ->  | E21: =IFERROR(VLOOKUP(D21,'بيان العملاء'!$B$7:$J$170,2,0),"") ->  | H21: =IFERROR(VLOOKUP(D21,'بيان العملاء'!$B$7:$J$170,5,0),"") ->  | I21: =IFERROR(VLOOKUP(D21,'بيان العملاء'!$B$7:$J$170,6,0),"") -> 
B22: =IF(C22="","",COUNTIF($C$7:C22,C22)) ->  | C22: =IF(AND('[1]كشف حساب'!$F$5&'[1]كشف حساب'!$F$6="")*AND(D22='[1]كشف حساب'!$B$5),1,IF(AND(F22>='[1]كشف حساب'!$F$5,'حركة العملاء'!F22<='[1]كشف حساب'!$F$6)*AND(D22='[1]كشف حساب'!$B$5),1,"")) ->  | E22: =IFERROR(VLOOKUP(D22,'بيان العملاء'!$B$7:$J$170,2,0),"") ->  | I22: =IFERROR(VLOOKUP(D22,'بيان العملاء'!$B$7:$J$170,6,0),"") -> 
B23: =IF(C23="","",COUNTIF($C$7:C23,C23)) ->  | C23: =IF(AND('[1]كشف حساب'!$F$5&'[1]كشف حساب'!$F$6="")*AND(D23='[1]كشف حساب'!$B$5),1,IF(AND(F23>='[1]كشف حساب'!$F$5,'حركة العملاء'!F23<='[1]كشف حساب'!$F$6)*AND(D23='[1]كشف حساب'!$B$5),1,"")) ->  | E23: =IFERROR(VLOOKUP(D23,'بيان العملاء'!$B$7:$J$170,2,0),"") ->  | I23: =IFERROR(VLOOKUP(D23,'بيان العملاء'!$B$7:$J$170,6,0),"") -> 
B24: =IF(C24="","",COUNTIF($C$7:C24,C24)) ->  | C24: =IF(AND('[1]كشف حساب'!$F$5&'[1]كشف حساب'!$F$6="")*AND(D24='[1]كشف حساب'!$B$5),1,IF(AND(F24>='[1]كشف حساب'!$F$5,'حركة العملاء'!F24<='[1]كشف حساب'!$F$6)*AND(D24='[1]كشف حساب'!$B$5),1,"")) ->  | E24: =IFERROR(VLOOKUP(D24,'بيان العملاء'!$B$7:$J$170,2,0),"") ->  | I24: =IFERROR(VLOOKUP(D24,'بيان العملاء'!$B$7:$J$170,6,0),"") -> 
B25: =IF(C25="","",COUNTIF($C$7:C25,C25)) ->  | C25: =IF(AND('[1]كشف حساب'!$F$5&'[1]كشف حساب'!$F$6="")*AND(D25='[1]كشف حساب'!$B$5),1,IF(AND(F25>='[1]كشف حساب'!$F$5,'حركة العملاء'!F25<='[1]كشف حساب'!$F$6)*AND(D25='[1]كشف حساب'!$B$5),1,"")) ->  | E25: =IFERROR(VLOOKUP(D25,'بيان العملاء'!$B$7:$J$170,2,0),"") ->  | I25: =IFERROR(VLOOKUP(D25,'بيان العملاء'!$B$7:$J$170,6,0),"") -> 
B26: =IF(C26="","",COUNTIF($C$7:C26,C26)) ->  | C26: =IF(AND('[1]كشف حساب'!$F$5&'[1]كشف حساب'!$F$6="")*AND(D26='[1]كشف حساب'!$B$5),1,IF(AND(F26>='[1]كشف حساب'!$F$5,'حركة العملاء'!F26<='[1]كشف حساب'!$F$6)*AND(D26='[1]كشف حساب'!$B$5),1,"")) ->  | E26: =IFERROR(VLOOKUP(D26,'بيان العملاء'!$B$7:$J$170,2,0),"") ->  | I26: =IFERROR(VLOOKUP(D26,'بيان العملاء'!$B$7:$J$170,6,0),"") -> 
B27: =IF(C27="","",COUNTIF($C$7:C27,C27)) ->  | C27: =IF(AND('[1]كشف حساب'!$F$5&'[1]كشف حساب'!$F$6="")*AND(D27='[1]كشف حساب'!$B$5),1,IF(AND(F27>='[1]كشف حساب'!$F$5,'حركة العملاء'!F27<='[1]كشف حساب'!$F$6)*AND(D27='[1]كشف حساب'!$B$5),1,"")) ->  | E27: =IFERROR(VLOOKUP(D27,'بيان العملاء'!$B$7:$J$170,2,0),"") ->  | I27: =IFERROR(VLOOKUP(D27,'بيان العملاء'!$B$7:$J$170,6,0),"") -> 
B28: =IF(C28="","",COUNTIF($C$7:C28,C28)) ->  | C28: =IF(AND('[1]كشف حساب'!$F$5&'[1]كشف حساب'!$F$6="")*AND(D28='[1]كشف حساب'!$B$5),1,IF(AND(F28>='[1]كشف حساب'!$F$5,'حركة العملاء'!F28<='[1]كشف حساب'!$F$6)*AND(D28='[1]كشف حساب'!$B$5),1,"")) ->  | E28: =IFERROR(VLOOKUP(D28,'بيان العملاء'!$B$7:$J$170,2,0),"") ->  | I28: =IFERROR(VLOOKUP(D28,'بيان العملاء'!$B$7:$J$170,6,0),"") -> 
B29: =IF(C29="","",COUNTIF($C$7:C29,C29)) ->  | C29: =IF(AND('[1]كشف حساب'!$F$5&'[1]كشف حساب'!$F$6="")*AND(D29='[1]كشف حساب'!$B$5),1,IF(AND(F29>='[1]كشف حساب'!$F$5,'حركة العملاء'!F29<='[1]كشف حساب'!$F$6)*AND(D29='[1]كشف حساب'!$B$5),1,"")) ->  | E29: =IFERROR(VLOOKUP(D29,'بيان العملاء'!$B$7:$J$170,2,0),"") ->  | I29: =IFERROR(VLOOKUP(D29,'بيان العملاء'!$B$7:$J$170,6,0),"") -> 
B30: =IF(C30="","",COUNTIF($C$7:C30,C30)) ->  | C30: =IF(AND('[1]كشف حساب'!$F$5&'[1]كشف حساب'!$F$6="")*AND(D30='[1]كشف حساب'!$B$5),1,IF(AND(F30>='[1]كشف حساب'!$F$5,'حركة العملاء'!F30<='[1]كشف حساب'!$F$6)*AND(D30='[1]كشف حساب'!$B$5),1,"")) ->  | E30: =IFERROR(VLOOKUP(D30,'بيان العملاء'!$B$7:$J$170,2,0),"") ->  | I30: =IFERROR(VLOOKUP(D30,'بيان العملاء'!$B$7:$J$170,6,0),"") -> 
B31: =IF(C31="","",COUNTIF($C$7:C31,C31)) ->  | C31: =IF(AND('[1]كشف حساب'!$F$5&'[1]كشف حساب'!$F$6="")*AND(D31='[1]كشف حساب'!$B$5),1,IF(AND(F31>='[1]كشف حساب'!$F$5,'حركة العملاء'!F31<='[1]كشف حساب'!$F$6)*AND(D31='[1]كشف حساب'!$B$5),1,"")) ->  | E31: =IFERROR(VLOOKUP(D31,'بيان العملاء'!$B$7:$J$170,2,0),"") ->  | I31: =IFERROR(VLOOKUP(D31,'بيان العملاء'!$B$7:$J$170,6,0),"") -> 
B32: =IF(C32="","",COUNTIF($C$7:C32,C32)) ->  | C32: =IF(AND('[1]كشف حساب'!$F$5&'[1]كشف حساب'!$F$6="")*AND(D32='[1]كشف حساب'!$B$5),1,IF(AND(F32>='[1]كشف حساب'!$F$5,'حركة العملاء'!F32<='[1]كشف حساب'!$F$6)*AND(D32='[1]كشف حساب'!$B$5),1,"")) ->  | E32: =IFERROR(VLOOKUP(D32,'بيان العملاء'!$B$7:$J$170,2,0),"") ->  | I32: =IFERROR(VLOOKUP(D32,'بيان العملاء'!$B$7:$J$170,6,0),"") -> 
B33: =IF(C33="","",COUNTIF($C$7:C33,C33)) ->  | C33: =IF(AND('[1]كشف حساب'!$F$5&'[1]كشف حساب'!$F$6="")*AND(D33='[1]كشف حساب'!$B$5),1,IF(AND(F33>='[1]كشف حساب'!$F$5,'حركة العملاء'!F33<='[1]كشف حساب'!$F$6)*AND(D33='[1]كشف حساب'!$B$5),1,"")) ->  | E33: =IFERROR(VLOOKUP(D33,'بيان العملاء'!$B$7:$J$170,2,0),"") ->  | I33: =IFERROR(VLOOKUP(D33,'بيان العملاء'!$B$7:$J$170,6,0),"") -> 
B34: =IF(C34="","",COUNTIF($C$7:C34,C34)) ->  | C34: =IF(AND('[1]كشف حساب'!$F$5&'[1]كشف حساب'!$F$6="")*AND(D34='[1]كشف حساب'!$B$5),1,IF(AND(F34>='[1]كشف حساب'!$F$5,'حركة العملاء'!F34<='[1]كشف حساب'!$F$6)*AND(D34='[1]كشف حساب'!$B$5),1,"")) ->  | E34: =IFERROR(VLOOKUP(D34,'بيان العملاء'!$B$7:$J$170,2,0),"") ->  | I34: =IFERROR(VLOOKUP(D34,'بيان العملاء'!$B$7:$J$170,6,0),"") -> 
B35: =IF(C35="","",COUNTIF($C$7:C35,C35)) ->  | C35: =IF(AND('[1]كشف حساب'!$F$5&'[1]كشف حساب'!$F$6="")*AND(D35='[1]كشف حساب'!$B$5),1,IF(AND(F35>='[1]كشف حساب'!$F$5,'حركة العملاء'!F35<='[1]كشف حساب'!$F$6)*AND(D35='[1]كشف حساب'!$B$5),1,"")) ->  | E35: =IFERROR(VLOOKUP(D35,'بيان العملاء'!$B$7:$J$170,2,0),"") ->  | I35: =IFERROR(VLOOKUP(D35,'بيان العملاء'!$B$7:$J$170,6,0),"") -> 
B36: =IF(C36="","",COUNTIF($C$7:C36,C36)) ->  | C36: =IF(AND('[1]كشف حساب'!$F$5&'[1]كشف حساب'!$F$6="")*AND(D36='[1]كشف حساب'!$B$5),1,IF(AND(F36>='[1]كشف حساب'!$F$5,'حركة العملاء'!F36<='[1]كشف حساب'!$F$6)*AND(D36='[1]كشف حساب'!$B$5),1,"")) ->  | E36: =IFERROR(VLOOKUP(D36,'بيان العملاء'!$B$7:$J$170,2,0),"") ->  | I36: =IFERROR(VLOOKUP(D36,'بيان العملاء'!$B$7:$J$170,6,0),"") -> 
B37: =IF(C37="","",COUNTIF($C$7:C37,C37)) ->  | C37: =IF(AND('[1]كشف حساب'!$F$5&'[1]كشف حساب'!$F$6="")*AND(D37='[1]كشف حساب'!$B$5),1,IF(AND(F37>='[1]كشف حساب'!$F$5,'حركة العملاء'!F37<='[1]كشف حساب'!$F$6)*AND(D37='[1]كشف حساب'!$B$5),1,"")) ->  | E37: =IFERROR(VLOOKUP(D37,'بيان العملاء'!$B$7:$J$170,2,0),"") ->  | I37: =IFERROR(VLOOKUP(D37,'بيان العملاء'!$B$7:$J$170,6,0),"") -> 
B38: =IF(C38="","",COUNTIF($C$7:C38,C38)) ->  | C38: =IF(AND('[1]كشف حساب'!$F$5&'[1]كشف حساب'!$F$6="")*AND(D38='[1]كشف حساب'!$B$5),1,IF(AND(F38>='[1]كشف حساب'!$F$5,'حركة العملاء'!F38<='[1]كشف حساب'!$F$6)*AND(D38='[1]كشف حساب'!$B$5),1,"")) ->  | E38: =IFERROR(VLOOKUP(D38,'بيان العملاء'!$B$7:$J$170,2,0),"") ->  | I38: =IFERROR(VLOOKUP(D38,'بيان العملاء'!$B$7:$J$170,6,0),"") -> 
B39: =IF(C39="","",COUNTIF($C$7:C39,C39)) ->  | C39: =IF(AND('[1]كشف حساب'!$F$5&'[1]كشف حساب'!$F$6="")*AND(D39='[1]كشف حساب'!$B$5),1,IF(AND(F39>='[1]كشف حساب'!$F$5,'حركة العملاء'!F39<='[1]كشف حساب'!$F$6)*AND(D39='[1]كشف حساب'!$B$5),1,"")) ->  | E39: =IFERROR(VLOOKUP(D39,'بيان العملاء'!$B$7:$J$170,2,0),"") ->  | I39: =IFERROR(VLOOKUP(D39,'بيان العملاء'!$B$7:$J$170,6,0),"") -> 
B40: =IF(C40="","",COUNTIF($C$7:C40,C40)) ->  | C40: =IF(AND('[1]كشف حساب'!$F$5&'[1]كشف حساب'!$F$6="")*AND(D40='[1]كشف حساب'!$B$5),1,IF(AND(F40>='[1]كشف حساب'!$F$5,'حركة العملاء'!F40<='[1]كشف حساب'!$F$6)*AND(D40='[1]كشف حساب'!$B$5),1,"")) ->  | E40: =IFERROR(VLOOKUP(D40,'بيان العملاء'!$B$7:$J$170,2,0),"") ->  | I40: =IFERROR(VLOOKUP(D40,'بيان العملاء'!$B$7:$J$170,6,0),"") -> 
B41: =IF(C41="","",COUNTIF($C$7:C41,C41)) ->  | C41: =IF(AND('[1]كشف حساب'!$F$5&'[1]كشف حساب'!$F$6="")*AND(D41='[1]كشف حساب'!$B$5),1,IF(AND(F41>='[1]كشف حساب'!$F$5,'حركة العملاء'!F41<='[1]كشف حساب'!$F$6)*AND(D41='[1]كشف حساب'!$B$5),1,"")) ->  | E41: =IFERROR(VLOOKUP(D41,'بيان العملاء'!$B$7:$J$170,2,0),"") ->  | I41: =IFERROR(VLOOKUP(D41,'بيان العملاء'!$B$7:$J$170,6,0),"") -> 
B42: =IF(C42="","",COUNTIF($C$7:C42,C42)) ->  | C42: =IF(AND('[1]كشف حساب'!$F$5&'[1]كشف حساب'!$F$6="")*AND(D42='[1]كشف حساب'!$B$5),1,IF(AND(F42>='[1]كشف حساب'!$F$5,'حركة العملاء'!F42<='[1]كشف حساب'!$F$6)*AND(D42='[1]كشف حساب'!$B$5),1,"")) ->  | E42: =IFERROR(VLOOKUP(D42,'بيان العملاء'!$B$7:$J$170,2,0),"") ->  | I42: =IFERROR(VLOOKUP(D42,'بيان العملاء'!$B$7:$J$170,6,0),"") -> 
B43: =IF(C43="","",COUNTIF($C$7:C43,C43)) ->  | C43: =IF(AND('[1]كشف حساب'!$F$5&'[1]كشف حساب'!$F$6="")*AND(D43='[1]كشف حساب'!$B$5),1,IF(AND(F43>='[1]كشف حساب'!$F$5,'حركة العملاء'!F43<='[1]كشف حساب'!$F$6)*AND(D43='[1]كشف حساب'!$B$5),1,"")) ->  | E43: =IFERROR(VLOOKUP(D43,'بيان العملاء'!$B$7:$J$170,2,0),"") ->  | I43: =IFERROR(VLOOKUP(D43,'بيان العملاء'!$B$7:$J$170,6,0),"") -> 
B44: =IF(C44="","",COUNTIF($C$7:C44,C44)) ->  | C44: =IF(AND('[1]كشف حساب'!$F$5&'[1]كشف حساب'!$F$6="")*AND(D44='[1]كشف حساب'!$B$5),1,IF(AND(F44>='[1]كشف حساب'!$F$5,'حركة العملاء'!F44<='[1]كشف حساب'!$F$6)*AND(D44='[1]كشف حساب'!$B$5),1,"")) ->  | E44: =IFERROR(VLOOKUP(D44,'بيان العملاء'!$B$7:$J$170,2,0),"") ->  | I44: =IFERROR(VLOOKUP(D44,'بيان العملاء'!$B$7:$J$170,6,0),"") -> 
B45: =IF(C45="","",COUNTIF($C$7:C45,C45)) ->  | C45: =IF(AND('[1]كشف حساب'!$F$5&'[1]كشف حساب'!$F$6="")*AND(D45='[1]كشف حساب'!$B$5),1,IF(AND(F45>='[1]كشف حساب'!$F$5,'حركة العملاء'!F45<='[1]كشف حساب'!$F$6)*AND(D45='[1]كشف حساب'!$B$5),1,"")) ->  | E45: =IFERROR(VLOOKUP(D45,'بيان العملاء'!$B$7:$J$170,2,0),"") ->  | I45: =IFERROR(VLOOKUP(D45,'بيان العملاء'!$B$7:$J$170,6,0),"") -> 
B46: =IF(C46="","",COUNTIF($C$7:C46,C46)) ->  | C46: =IF(AND('[1]كشف حساب'!$F$5&'[1]كشف حساب'!$F$6="")*AND(D46='[1]كشف حساب'!$B$5),1,IF(AND(F46>='[1]كشف حساب'!$F$5,'حركة العملاء'!F46<='[1]كشف حساب'!$F$6)*AND(D46='[1]كشف حساب'!$B$5),1,"")) ->  | E46: =IFERROR(VLOOKUP(D46,'بيان العملاء'!$B$7:$J$170,2,0),"") ->  | I46: =IFERROR(VLOOKUP(D46,'بيان العملاء'!$B$7:$J$170,6,0),"") -> 
B47: =IF(C47="","",COUNTIF($C$7:C47,C47)) ->  | C47: =IF(AND('[1]كشف حساب'!$F$5&'[1]كشف حساب'!$F$6="")*AND(D47='[1]كشف حساب'!$B$5),1,IF(AND(F47>='[1]كشف حساب'!$F$5,'حركة العملاء'!F47<='[1]كشف حساب'!$F$6)*AND(D47='[1]كشف حساب'!$B$5),1,"")) ->  | E47: =IFERROR(VLOOKUP(D47,'بيان العملاء'!$B$7:$J$170,2,0),"") ->  | I47: =IFERROR(VLOOKUP(D47,'بيان العملاء'!$B$7:$J$170,6,0),"") -> 
B48: =IF(C48="","",COUNTIF($C$7:C48,C48)) ->  | C48: =IF(AND('[1]كشف حساب'!$F$5&'[1]كشف حساب'!$F$6="")*AND(D48='[1]كشف حساب'!$B$5),1,IF(AND(F48>='[1]كشف حساب'!$F$5,'حركة العملاء'!F48<='[1]كشف حساب'!$F$6)*AND(D48='[1]كشف حساب'!$B$5),1,"")) ->  | E48: =IFERROR(VLOOKUP(D48,'بيان العملاء'!$B$7:$J$170,2,0),"") ->  | I48: =IFERROR(VLOOKUP(D48,'بيان العملاء'!$B$7:$J$170,6,0),"") -> 
B49: =IF(C49="","",COUNTIF($C$7:C49,C49)) ->  | C49: =IF(AND('[1]كشف حساب'!$F$5&'[1]كشف حساب'!$F$6="")*AND(D49='[1]كشف حساب'!$B$5),1,IF(AND(F49>='[1]كشف حساب'!$F$5,'حركة العملاء'!F49<='[1]كشف حساب'!$F$6)*AND(D49='[1]كشف حساب'!$B$5),1,"")) ->  | E49: =IFERROR(VLOOKUP(D49,'بيان العملاء'!$B$7:$J$170,2,0),"") ->  | I49: =IFERROR(VLOOKUP(D49,'بيان العملاء'!$B$7:$J$170,6,0),"") -> 
B50: =IF(C50="","",COUNTIF($C$7:C50,C50)) ->  | C50: =IF(AND('[1]كشف حساب'!$F$5&'[1]كشف حساب'!$F$6="")*AND(D50='[1]كشف حساب'!$B$5),1,IF(AND(F50>='[1]كشف حساب'!$F$5,'حركة العملاء'!F50<='[1]كشف حساب'!$F$6)*AND(D50='[1]كشف حساب'!$B$5),1,"")) ->  | E50: =IFERROR(VLOOKUP(D50,'بيان العملاء'!$B$7:$J$170,2,0),"") ->  | I50: =IFERROR(VLOOKUP(D50,'بيان العملاء'!$B$7:$J$170,6,0),"") -> 
B51: =IF(C51="","",COUNTIF($C$7:C51,C51)) ->  | C51: =IF(AND('[1]كشف حساب'!$F$5&'[1]كشف حساب'!$F$6="")*AND(D51='[1]كشف حساب'!$B$5),1,IF(AND(F51>='[1]كشف حساب'!$F$5,'حركة العملاء'!F51<='[1]كشف حساب'!$F$6)*AND(D51='[1]كشف حساب'!$B$5),1,"")) ->  | E51: =IFERROR(VLOOKUP(D51,'بيان العملاء'!$B$7:$J$170,2,0),"") ->  | I51: =IFERROR(VLOOKUP(D51,'بيان العملاء'!$B$7:$J$170,6,0),"") -> 
B52: =IF(C52="","",COUNTIF($C$7:C52,C52)) ->  | C52: =IF(AND('[1]كشف حساب'!$F$5&'[1]كشف حساب'!$F$6="")*AND(D52='[1]كشف حساب'!$B$5),1,IF(AND(F52>='[1]كشف حساب'!$F$5,'حركة العملاء'!F52<='[1]كشف حساب'!$F$6)*AND(D52='[1]كشف حساب'!$B$5),1,"")) ->  | E52: =IFERROR(VLOOKUP(D52,'بيان العملاء'!$B$7:$J$170,2,0),"") ->  | I52: =IFERROR(VLOOKUP(D52,'بيان العملاء'!$B$7:$J$170,6,0),"") -> 
B53: =IF(C53="","",COUNTIF($C$7:C53,C53)) ->  | C53: =IF(AND('[1]كشف حساب'!$F$5&'[1]كشف حساب'!$F$6="")*AND(D53='[1]كشف حساب'!$B$5),1,IF(AND(F53>='[1]كشف حساب'!$F$5,'حركة العملاء'!F53<='[1]كشف حساب'!$F$6)*AND(D53='[1]كشف حساب'!$B$5),1,"")) ->  | E53: =IFERROR(VLOOKUP(D53,'بيان العملاء'!$B$7:$J$170,2,0),"") ->  | I53: =IFERROR(VLOOKUP(D53,'بيان العملاء'!$B$7:$J$170,6,0),"") -> 
B54: =IF(C54="","",COUNTIF($C$7:C54,C54)) ->  | C54: =IF(AND('[1]كشف حساب'!$F$5&'[1]كشف حساب'!$F$6="")*AND(D54='[1]كشف حساب'!$B$5),1,IF(AND(F54>='[1]كشف حساب'!$F$5,'حركة العملاء'!F54<='[1]كشف حساب'!$F$6)*AND(D54='[1]كشف حساب'!$B$5),1,"")) ->  | E54: =IFERROR(VLOOKUP(D54,'بيان العملاء'!$B$7:$J$170,2,0),"") ->  | I54: =IFERROR(VLOOKUP(D54,'بيان العملاء'!$B$7:$J$170,6,0),"") -> 
B55: =IF(C55="","",COUNTIF($C$7:C55,C55)) ->  | C55: =IF(AND('[1]كشف حساب'!$F$5&'[1]كشف حساب'!$F$6="")*AND(D55='[1]كشف حساب'!$B$5),1,IF(AND(F55>='[1]كشف حساب'!$F$5,'حركة العملاء'!F55<='[1]كشف حساب'!$F$6)*AND(D55='[1]كشف حساب'!$B$5),1,"")) ->  | E55: =IFERROR(VLOOKUP(D55,'بيان العملاء'!$B$7:$J$170,2,0),"") ->  | I55: =IFERROR(VLOOKUP(D55,'بيان العملاء'!$B$7:$J$170,6,0),"") -> 
B56: =IF(C56="","",COUNTIF($C$7:C56,C56)) ->  | C56: =IF(AND('[1]كشف حساب'!$F$5&'[1]كشف حساب'!$F$6="")*AND(D56='[1]كشف حساب'!$B$5),1,IF(AND(F56>='[1]كشف حساب'!$F$5,'حركة العملاء'!F56<='[1]كشف حساب'!$F$6)*AND(D56='[1]كشف حساب'!$B$5),1,"")) ->  | E56: =IFERROR(VLOOKUP(D56,'بيان العملاء'!$B$7:$J$170,2,0),"") ->  | I56: =IFERROR(VLOOKUP(D56,'بيان العملاء'!$B$7:$J$170,6,0),"") -> 
B57: =IF(C57="","",COUNTIF($C$7:C57,C57)) ->  | C57: =IF(AND('[1]كشف حساب'!$F$5&'[1]كشف حساب'!$F$6="")*AND(D57='[1]كشف حساب'!$B$5),1,IF(AND(F57>='[1]كشف حساب'!$F$5,'حركة العملاء'!F57<='[1]كشف حساب'!$F$6)*AND(D57='[1]كشف حساب'!$B$5),1,"")) ->  | E57: =IFERROR(VLOOKUP(D57,'بيان العملاء'!$B$7:$J$170,2,0),"") ->  | I57: =IFERROR(VLOOKUP(D57,'بيان العملاء'!$B$7:$J$170,6,0),"") -> 
B58: =IF(C58="","",COUNTIF($C$7:C58,C58)) ->  | C58: =IF(AND('[1]كشف حساب'!$F$5&'[1]كشف حساب'!$F$6="")*AND(D58='[1]كشف حساب'!$B$5),1,IF(AND(F58>='[1]كشف حساب'!$F$5,'حركة العملاء'!F58<='[1]كشف حساب'!$F$6)*AND(D58='[1]كشف حساب'!$B$5),1,"")) ->  | E58: =IFERROR(VLOOKUP(D58,'بيان العملاء'!$B$7:$J$170,2,0),"") ->  | I58: =IFERROR(VLOOKUP(D58,'بيان العملاء'!$B$7:$J$170,6,0),"") -> 
B59: =IF(C59="","",COUNTIF($C$7:C59,C59)) ->  | C59: =IF(AND('[1]كشف حساب'!$F$5&'[1]كشف حساب'!$F$6="")*AND(D59='[1]كشف حساب'!$B$5),1,IF(AND(F59>='[1]كشف حساب'!$F$5,'حركة العملاء'!F59<='[1]كشف حساب'!$F$6)*AND(D59='[1]كشف حساب'!$B$5),1,"")) ->  | E59: =IFERROR(VLOOKUP(D59,'بيان العملاء'!$B$7:$J$170,2,0),"") ->  | I59: =IFERROR(VLOOKUP(D59,'بيان العملاء'!$B$7:$J$170,6,0),"") -> 
B60: =IF(C60="","",COUNTIF($C$7:C60,C60)) ->  | C60: =IF(AND('[1]كشف حساب'!$F$5&'[1]كشف حساب'!$F$6="")*AND(D60='[1]كشف حساب'!$B$5),1,IF(AND(F60>='[1]كشف حساب'!$F$5,'حركة العملاء'!F60<='[1]كشف حساب'!$F$6)*AND(D60='[1]كشف حساب'!$B$5),1,"")) ->  | E60: =IFERROR(VLOOKUP(D60,'بيان العملاء'!$B$7:$J$170,2,0),"") ->  | I60: =IFERROR(VLOOKUP(D60,'بيان العملاء'!$B$7:$J$170,6,0),"") -> 
B61: =IF(C61="","",COUNTIF($C$7:C61,C61)) ->  | C61: =IF(AND('[1]كشف حساب'!$F$5&'[1]كشف حساب'!$F$6="")*AND(D61='[1]كشف حساب'!$B$5),1,IF(AND(F61>='[1]كشف حساب'!$F$5,'حركة العملاء'!F61<='[1]كشف حساب'!$F$6)*AND(D61='[1]كشف حساب'!$B$5),1,"")) ->  | E61: =IFERROR(VLOOKUP(D61,'بيان العملاء'!$B$7:$J$170,2,0),"") ->  | I61: =IFERROR(VLOOKUP(D61,'بيان العملاء'!$B$7:$J$170,6,0),"") -> 
B62: =IF(C62="","",COUNTIF($C$7:C62,C62)) ->  | C62: =IF(AND('[1]كشف حساب'!$F$5&'[1]كشف حساب'!$F$6="")*AND(D62='[1]كشف حساب'!$B$5),1,IF(AND(F62>='[1]كشف حساب'!$F$5,'حركة العملاء'!F62<='[1]كشف حساب'!$F$6)*AND(D62='[1]كشف حساب'!$B$5),1,"")) ->  | E62: =IFERROR(VLOOKUP(D62,'بيان العملاء'!$B$7:$J$170,2,0),"") ->  | I62: =IFERROR(VLOOKUP(D62,'بيان العملاء'!$B$7:$J$170,6,0),"") -> 
B63: =IF(C63="","",COUNTIF($C$7:C63,C63)) ->  | C63: =IF(AND('[1]كشف حساب'!$F$5&'[1]كشف حساب'!$F$6="")*AND(D63='[1]كشف حساب'!$B$5),1,IF(AND(F63>='[1]كشف حساب'!$F$5,'حركة العملاء'!F63<='[1]كشف حساب'!$F$6)*AND(D63='[1]كشف حساب'!$B$5),1,"")) ->  | E63: =IFERROR(VLOOKUP(D63,'بيان العملاء'!$B$7:$J$170,2,0),"") ->  | I63: =IFERROR(VLOOKUP(D63,'بيان العملاء'!$B$7:$J$170,6,0),"") -> 
B64: =IF(C64="","",COUNTIF($C$7:C64,C64)) ->  | C64: =IF(AND('[1]كشف حساب'!$F$5&'[1]كشف حساب'!$F$6="")*AND(D64='[1]كشف حساب'!$B$5),1,IF(AND(F64>='[1]كشف حساب'!$F$5,'حركة العملاء'!F64<='[1]كشف حساب'!$F$6)*AND(D64='[1]كشف حساب'!$B$5),1,"")) ->  | E64: =IFERROR(VLOOKUP(D64,'بيان العملاء'!$B$7:$J$170,2,0),"") ->  | I64: =IFERROR(VLOOKUP(D64,'بيان العملاء'!$B$7:$J$170,6,0),"") -> 
B65: =IF(C65="","",COUNTIF($C$7:C65,C65)) ->  | C65: =IF(AND('[1]كشف حساب'!$F$5&'[1]كشف حساب'!$F$6="")*AND(D65='[1]كشف حساب'!$B$5),1,IF(AND(F65>='[1]كشف حساب'!$F$5,'حركة العملاء'!F65<='[1]كشف حساب'!$F$6)*AND(D65='[1]كشف حساب'!$B$5),1,"")) ->  | E65: =IFERROR(VLOOKUP(D65,'بيان العملاء'!$B$7:$J$170,2,0),"") ->  | I65: =IFERROR(VLOOKUP(D65,'بيان العملاء'!$B$7:$J$170,6,0),"") -> 
B66: =IF(C66="","",COUNTIF($C$7:C66,C66)) ->  | C66: =IF(AND('[1]كشف حساب'!$F$5&'[1]كشف حساب'!$F$6="")*AND(D66='[1]كشف حساب'!$B$5),1,IF(AND(F66>='[1]كشف حساب'!$F$5,'حركة العملاء'!F66<='[1]كشف حساب'!$F$6)*AND(D66='[1]كشف حساب'!$B$5),1,"")) ->  | E66: =IFERROR(VLOOKUP(D66,'بيان العملاء'!$B$7:$J$170,2,0),"") ->  | I66: =IFERROR(VLOOKUP(D66,'بيان العملاء'!$B$7:$J$170,6,0),"") -> 
B67: =IF(C67="","",COUNTIF($C$7:C67,C67)) ->  | C67: =IF(AND('[1]كشف حساب'!$F$5&'[1]كشف حساب'!$F$6="")*AND(D67='[1]كشف حساب'!$B$5),1,IF(AND(F67>='[1]كشف حساب'!$F$5,'حركة العملاء'!F67<='[1]كشف حساب'!$F$6)*AND(D67='[1]كشف حساب'!$B$5),1,"")) ->  | E67: =IFERROR(VLOOKUP(D67,'بيان العملاء'!$B$7:$J$170,2,0),"") ->  | I67: =IFERROR(VLOOKUP(D67,'بيان العملاء'!$B$7:$J$170,6,0),"") -> 
B68: =IF(C68="","",COUNTIF($C$7:C68,C68)) ->  | C68: =IF(AND('[1]كشف حساب'!$F$5&'[1]كشف حساب'!$F$6="")*AND(D68='[1]كشف حساب'!$B$5),1,IF(AND(F68>='[1]كشف حساب'!$F$5,'حركة العملاء'!F68<='[1]كشف حساب'!$F$6)*AND(D68='[1]كشف حساب'!$B$5),1,"")) ->  | E68: =IFERROR(VLOOKUP(D68,'بيان العملاء'!$B$7:$J$170,2,0),"") ->  | I68: =IFERROR(VLOOKUP(D68,'بيان العملاء'!$B$7:$J$170,6,0),"") -> 
B69: =IF(C69="","",COUNTIF($C$7:C69,C69)) ->  | C69: =IF(AND('[1]كشف حساب'!$F$5&'[1]كشف حساب'!$F$6="")*AND(D69='[1]كشف حساب'!$B$5),1,IF(AND(F69>='[1]كشف حساب'!$F$5,'حركة العملاء'!F69<='[1]كشف حساب'!$F$6)*AND(D69='[1]كشف حساب'!$B$5),1,"")) ->  | E69: =IFERROR(VLOOKUP(D69,'بيان العملاء'!$B$7:$J$170,2,0),"") ->  | I69: =IFERROR(VLOOKUP(D69,'بيان العملاء'!$B$7:$J$170,6,0),"") -> 
B70: =IF(C70="","",COUNTIF($C$7:C70,C70)) ->  | C70: =IF(AND('[1]كشف حساب'!$F$5&'[1]كشف حساب'!$F$6="")*AND(D70='[1]كشف حساب'!$B$5),1,IF(AND(F70>='[1]كشف حساب'!$F$5,'حركة العملاء'!F70<='[1]كشف حساب'!$F$6)*AND(D70='[1]كشف حساب'!$B$5),1,"")) ->  | E70: =IFERROR(VLOOKUP(D70,'بيان العملاء'!$B$7:$J$170,2,0),"") ->  | I70: =IFERROR(VLOOKUP(D70,'بيان العملاء'!$B$7:$J$170,6,0),"") -> 
B71: =IF(C71="","",COUNTIF($C$7:C71,C71)) ->  | C71: =IF(AND('[1]كشف حساب'!$F$5&'[1]كشف حساب'!$F$6="")*AND(D71='[1]كشف حساب'!$B$5),1,IF(AND(F71>='[1]كشف حساب'!$F$5,'حركة العملاء'!F71<='[1]كشف حساب'!$F$6)*AND(D71='[1]كشف حساب'!$B$5),1,"")) ->  | E71: =IFERROR(VLOOKUP(D71,'بيان العملاء'!$B$7:$J$170,2,0),"") ->  | I71: =IFERROR(VLOOKUP(D71,'بيان العملاء'!$B$7:$J$170,6,0),"") -> 
B72: =IF(C72="","",COUNTIF($C$7:C72,C72)) ->  | C72: =IF(AND('[1]كشف حساب'!$F$5&'[1]كشف حساب'!$F$6="")*AND(D72='[1]كشف حساب'!$B$5),1,IF(AND(F72>='[1]كشف حساب'!$F$5,'حركة العملاء'!F72<='[1]كشف حساب'!$F$6)*AND(D72='[1]كشف حساب'!$B$5),1,"")) ->  | E72: =IFERROR(VLOOKUP(D72,'بيان العملاء'!$B$7:$J$170,2,0),"") ->  | I72: =IFERROR(VLOOKUP(D72,'بيان العملاء'!$B$7:$J$170,6,0),"") -> 
B73: =IF(C73="","",COUNTIF($C$7:C73,C73)) ->  | C73: =IF(AND('[1]كشف حساب'!$F$5&'[1]كشف حساب'!$F$6="")*AND(D73='[1]كشف حساب'!$B$5),1,IF(AND(F73>='[1]كشف حساب'!$F$5,'حركة العملاء'!F73<='[1]كشف حساب'!$F$6)*AND(D73='[1]كشف حساب'!$B$5),1,"")) ->  | E73: =IFERROR(VLOOKUP(D73,'بيان العملاء'!$B$7:$J$170,2,0),"") ->  | I73: =IFERROR(VLOOKUP(D73,'بيان العملاء'!$B$7:$J$170,6,0),"") -> 
B74: =IF(C74="","",COUNTIF($C$7:C74,C74)) ->  | C74: =IF(AND('[1]كشف حساب'!$F$5&'[1]كشف حساب'!$F$6="")*AND(D74='[1]كشف حساب'!$B$5),1,IF(AND(F74>='[1]كشف حساب'!$F$5,'حركة العملاء'!F74<='[1]كشف حساب'!$F$6)*AND(D74='[1]كشف حساب'!$B$5),1,"")) ->  | E74: =IFERROR(VLOOKUP(D74,'بيان العملاء'!$B$7:$J$170,2,0),"") ->  | I74: =IFERROR(VLOOKUP(D74,'بيان العملاء'!$B$7:$J$170,6,0),"") -> 
B75: =IF(C75="","",COUNTIF($C$7:C75,C75)) ->  | C75: =IF(AND('[1]كشف حساب'!$F$5&'[1]كشف حساب'!$F$6="")*AND(D75='[1]كشف حساب'!$B$5),1,IF(AND(F75>='[1]كشف حساب'!$F$5,'حركة العملاء'!F75<='[1]كشف حساب'!$F$6)*AND(D75='[1]كشف حساب'!$B$5),1,"")) ->  | E75: =IFERROR(VLOOKUP(D75,'بيان العملاء'!$B$7:$J$170,2,0),"") ->  | I75: =IFERROR(VLOOKUP(D75,'بيان العملاء'!$B$7:$J$170,6,0),"") -> 
B76: =IF(C76="","",COUNTIF($C$7:C76,C76)) ->  | C76: =IF(AND('[1]كشف حساب'!$F$5&'[1]كشف حساب'!$F$6="")*AND(D76='[1]كشف حساب'!$B$5),1,IF(AND(F76>='[1]كشف حساب'!$F$5,'حركة العملاء'!F76<='[1]كشف حساب'!$F$6)*AND(D76='[1]كشف حساب'!$B$5),1,"")) ->  | E76: =IFERROR(VLOOKUP(D76,'بيان العملاء'!$B$7:$J$170,2,0),"") ->  | I76: =IFERROR(VLOOKUP(D76,'بيان العملاء'!$B$7:$J$170,6,0),"") -> 
B77: =IF(C77="","",COUNTIF($C$7:C77,C77)) ->  | C77: =IF(AND('[1]كشف حساب'!$F$5&'[1]كشف حساب'!$F$6="")*AND(D77='[1]كشف حساب'!$B$5),1,IF(AND(F77>='[1]كشف حساب'!$F$5,'حركة العملاء'!F77<='[1]كشف حساب'!$F$6)*AND(D77='[1]كشف حساب'!$B$5),1,"")) ->  | E77: =IFERROR(VLOOKUP(D77,'بيان العملاء'!$B$7:$J$170,2,0),"") ->  | I77: =IFERROR(VLOOKUP(D77,'بيان العملاء'!$B$7:$J$170,6,0),"") -> 
B78: =IF(C78="","",COUNTIF($C$7:C78,C78)) ->  | C78: =IF(AND('[1]كشف حساب'!$F$5&'[1]كشف حساب'!$F$6="")*AND(D78='[1]كشف حساب'!$B$5),1,IF(AND(F78>='[1]كشف حساب'!$F$5,'حركة العملاء'!F78<='[1]كشف حساب'!$F$6)*AND(D78='[1]كشف حساب'!$B$5),1,"")) ->  | E78: =IFERROR(VLOOKUP(D78,'بيان العملاء'!$B$7:$J$170,2,0),"") ->  | I78: =IFERROR(VLOOKUP(D78,'بيان العملاء'!$B$7:$J$170,6,0),"") -> 
B79: =IF(C79="","",COUNTIF($C$7:C79,C79)) ->  | C79: =IF(AND('[1]كشف حساب'!$F$5&'[1]كشف حساب'!$F$6="")*AND(D79='[1]كشف حساب'!$B$5),1,IF(AND(F79>='[1]كشف حساب'!$F$5,'حركة العملاء'!F79<='[1]كشف حساب'!$F$6)*AND(D79='[1]كشف حساب'!$B$5),1,"")) ->  | E79: =IFERROR(VLOOKUP(D79,'بيان العملاء'!$B$7:$J$170,2,0),"") ->  | I79: =IFERROR(VLOOKUP(D79,'بيان العملاء'!$B$7:$J$170,6,0),"") -> 
B80: =IF(C80="","",COUNTIF($C$7:C80,C80)) ->  | C80: =IF(AND('[1]كشف حساب'!$F$5&'[1]كشف حساب'!$F$6="")*AND(D80='[1]كشف حساب'!$B$5),1,IF(AND(F80>='[1]كشف حساب'!$F$5,'حركة العملاء'!F80<='[1]كشف حساب'!$F$6)*AND(D80='[1]كشف حساب'!$B$5),1,"")) ->  | E80: =IFERROR(VLOOKUP(D80,'بيان العملاء'!$B$7:$J$170,2,0),"") ->  | I80: =IFERROR(VLOOKUP(D80,'بيان العملاء'!$B$7:$J$170,6,0),"") -> 
B81: =IF(C81="","",COUNTIF($C$7:C81,C81)) ->  | C81: =IF(AND('[1]كشف حساب'!$F$5&'[1]كشف حساب'!$F$6="")*AND(D81='[1]كشف حساب'!$B$5),1,IF(AND(F81>='[1]كشف حساب'!$F$5,'حركة العملاء'!F81<='[1]كشف حساب'!$F$6)*AND(D81='[1]كشف حساب'!$B$5),1,"")) ->  | E81: =IFERROR(VLOOKUP(D81,'بيان العملاء'!$B$7:$J$170,2,0),"") ->  | I81: =IFERROR(VLOOKUP(D81,'بيان العملاء'!$B$7:$J$170,6,0),"") -> 
B82: =IF(C82="","",COUNTIF($C$7:C82,C82)) ->  | C82: =IF(AND('[1]كشف حساب'!$F$5&'[1]كشف حساب'!$F$6="")*AND(D82='[1]كشف حساب'!$B$5),1,IF(AND(F82>='[1]كشف حساب'!$F$5,'حركة العملاء'!F82<='[1]كشف حساب'!$F$6)*AND(D82='[1]كشف حساب'!$B$5),1,"")) ->  | E82: =IFERROR(VLOOKUP(D82,'بيان العملاء'!$B$7:$J$170,2,0),"") ->  | I82: =IFERROR(VLOOKUP(D82,'بيان العملاء'!$B$7:$J$170,6,0),"") -> 
B83: =IF(C83="","",COUNTIF($C$7:C83,C83)) ->  | C83: =IF(AND('[1]كشف حساب'!$F$5&'[1]كشف حساب'!$F$6="")*AND(D83='[1]كشف حساب'!$B$5),1,IF(AND(F83>='[1]كشف حساب'!$F$5,'حركة العملاء'!F83<='[1]كشف حساب'!$F$6)*AND(D83='[1]كشف حساب'!$B$5),1,"")) ->  | E83: =IFERROR(VLOOKUP(D83,'بيان العملاء'!$B$7:$J$170,2,0),"") ->  | I83: =IFERROR(VLOOKUP(D83,'بيان العملاء'!$B$7:$J$170,6,0),"") -> 
B84: =IF(C84="","",COUNTIF($C$7:C84,C84)) ->  | C84: =IF(AND('[1]كشف حساب'!$F$5&'[1]كشف حساب'!$F$6="")*AND(D84='[1]كشف حساب'!$B$5),1,IF(AND(F84>='[1]كشف حساب'!$F$5,'حركة العملاء'!F84<='[1]كشف حساب'!$F$6)*AND(D84='[1]كشف حساب'!$B$5),1,"")) ->  | E84: =IFERROR(VLOOKUP(D84,'بيان العملاء'!$B$7:$J$170,2,0),"") ->  | I84: =IFERROR(VLOOKUP(D84,'بيان العملاء'!$B$7:$J$170,6,0),"") -> 
B85: =IF(C85="","",COUNTIF($C$7:C85,C85)) ->  | C85: =IF(AND('[1]كشف حساب'!$F$5&'[1]كشف حساب'!$F$6="")*AND(D85='[1]كشف حساب'!$B$5),1,IF(AND(F85>='[1]كشف حساب'!$F$5,'حركة العملاء'!F85<='[1]كشف حساب'!$F$6)*AND(D85='[1]كشف حساب'!$B$5),1,"")) ->  | E85: =IFERROR(VLOOKUP(D85,'بيان العملاء'!$B$7:$J$170,2,0),"") ->  | I85: =IFERROR(VLOOKUP(D85,'بيان العملاء'!$B$7:$J$170,6,0),"") -> 
B86: =IF(C86="","",COUNTIF($C$7:C86,C86)) ->  | C86: =IF(AND('[1]كشف حساب'!$F$5&'[1]كشف حساب'!$F$6="")*AND(D86='[1]كشف حساب'!$B$5),1,IF(AND(F86>='[1]كشف حساب'!$F$5,'حركة العملاء'!F86<='[1]كشف حساب'!$F$6)*AND(D86='[1]كشف حساب'!$B$5),1,"")) ->  | E86: =IFERROR(VLOOKUP(D86,'بيان العملاء'!$B$7:$J$170,2,0),"") ->  | I86: =IFERROR(VLOOKUP(D86,'بيان العملاء'!$B$7:$J$170,6,0),"") -> 
B87: =IF(C87="","",COUNTIF($C$7:C87,C87)) ->  | C87: =IF(AND('[1]كشف حساب'!$F$5&'[1]كشف حساب'!$F$6="")*AND(D87='[1]كشف حساب'!$B$5),1,IF(AND(F87>='[1]كشف حساب'!$F$5,'حركة العملاء'!F87<='[1]كشف حساب'!$F$6)*AND(D87='[1]كشف حساب'!$B$5),1,"")) ->  | E87: =IFERROR(VLOOKUP(D87,'بيان العملاء'!$B$7:$J$170,2,0),"") ->  | I87: =IFERROR(VLOOKUP(D87,'بيان العملاء'!$B$7:$J$170,6,0),"") -> 
B88: =IF(C88="","",COUNTIF($C$7:C88,C88)) ->  | C88: =IF(AND('[1]كشف حساب'!$F$5&'[1]كشف حساب'!$F$6="")*AND(D88='[1]كشف حساب'!$B$5),1,IF(AND(F88>='[1]كشف حساب'!$F$5,'حركة العملاء'!F88<='[1]كشف حساب'!$F$6)*AND(D88='[1]كشف حساب'!$B$5),1,"")) ->  | E88: =IFERROR(VLOOKUP(D88,'بيان العملاء'!$B$7:$J$170,2,0),"") ->  | I88: =IFERROR(VLOOKUP(D88,'بيان العملاء'!$B$7:$J$170,6,0),"") -> 
B89: =IF(C89="","",COUNTIF($C$7:C89,C89)) ->  | C89: =IF(AND('[1]كشف حساب'!$F$5&'[1]كشف حساب'!$F$6="")*AND(D89='[1]كشف حساب'!$B$5),1,IF(AND(F89>='[1]كشف حساب'!$F$5,'حركة العملاء'!F89<='[1]كشف حساب'!$F$6)*AND(D89='[1]كشف حساب'!$B$5),1,"")) ->  | E89: =IFERROR(VLOOKUP(D89,'بيان العملاء'!$B$7:$J$170,2,0),"") ->  | I89: =IFERROR(VLOOKUP(D89,'بيان العملاء'!$B$7:$J$170,6,0),"") -> 
B90: =IF(C90="","",COUNTIF($C$7:C90,C90)) ->  | C90: =IF(AND('[1]كشف حساب'!$F$5&'[1]كشف حساب'!$F$6="")*AND(D90='[1]كشف حساب'!$B$5),1,IF(AND(F90>='[1]كشف حساب'!$F$5,'حركة العملاء'!F90<='[1]كشف حساب'!$F$6)*AND(D90='[1]كشف حساب'!$B$5),1,"")) ->  | E90: =IFERROR(VLOOKUP(D90,'بيان العملاء'!$B$7:$J$170,2,0),"") ->  | I90: =IFERROR(VLOOKUP(D90,'بيان العملاء'!$B$7:$J$170,6,0),"") -> 
B91: =IF(C91="","",COUNTIF($C$7:C91,C91)) ->  | C91: =IF(AND('[1]كشف حساب'!$F$5&'[1]كشف حساب'!$F$6="")*AND(D91='[1]كشف حساب'!$B$5),1,IF(AND(F91>='[1]كشف حساب'!$F$5,'حركة العملاء'!F91<='[1]كشف حساب'!$F$6)*AND(D91='[1]كشف حساب'!$B$5),1,"")) ->  | E91: =IFERROR(VLOOKUP(D91,'بيان العملاء'!$B$7:$J$170,2,0),"") ->  | I91: =IFERROR(VLOOKUP(D91,'بيان العملاء'!$B$7:$J$170,6,0),"") -> 
B92: =IF(C92="","",COUNTIF($C$7:C92,C92)) ->  | C92: =IF(AND('[1]كشف حساب'!$F$5&'[1]كشف حساب'!$F$6="")*AND(D92='[1]كشف حساب'!$B$5),1,IF(AND(F92>='[1]كشف حساب'!$F$5,'حركة العملاء'!F92<='[1]كشف حساب'!$F$6)*AND(D92='[1]كشف حساب'!$B$5),1,"")) ->  | E92: =IFERROR(VLOOKUP(D92,'بيان العملاء'!$B$7:$J$170,2,0),"") ->  | I92: =IFERROR(VLOOKUP(D92,'بيان العملاء'!$B$7:$J$170,6,0),"") -> 
B93: =IF(C93="","",COUNTIF($C$7:C93,C93)) ->  | C93: =IF(AND('[1]كشف حساب'!$F$5&'[1]كشف حساب'!$F$6="")*AND(D93='[1]كشف حساب'!$B$5),1,IF(AND(F93>='[1]كشف حساب'!$F$5,'حركة العملاء'!F93<='[1]كشف حساب'!$F$6)*AND(D93='[1]كشف حساب'!$B$5),1,"")) ->  | E93: =IFERROR(VLOOKUP(D93,'بيان العملاء'!$B$7:$J$170,2,0),"") ->  | I93: =IFERROR(VLOOKUP(D93,'بيان العملاء'!$B$7:$J$170,6,0),"") -> 
B94: =IF(C94="","",COUNTIF($C$7:C94,C94)) ->  | C94: =IF(AND('[1]كشف حساب'!$F$5&'[1]كشف حساب'!$F$6="")*AND(D94='[1]كشف حساب'!$B$5),1,IF(AND(F94>='[1]كشف حساب'!$F$5,'حركة العملاء'!F94<='[1]كشف حساب'!$F$6)*AND(D94='[1]كشف حساب'!$B$5),1,"")) ->  | E94: =IFERROR(VLOOKUP(D94,'بيان العملاء'!$B$7:$J$170,2,0),"") ->  | I94: =IFERROR(VLOOKUP(D94,'بيان العملاء'!$B$7:$J$170,6,0),"") -> 
B95: =IF(C95="","",COUNTIF($C$7:C95,C95)) ->  | C95: =IF(AND('[1]كشف حساب'!$F$5&'[1]كشف حساب'!$F$6="")*AND(D95='[1]كشف حساب'!$B$5),1,IF(AND(F95>='[1]كشف حساب'!$F$5,'حركة العملاء'!F95<='[1]كشف حساب'!$F$6)*AND(D95='[1]كشف حساب'!$B$5),1,"")) ->  | E95: =IFERROR(VLOOKUP(D95,'بيان العملاء'!$B$7:$J$170,2,0),"") ->  | I95: =IFERROR(VLOOKUP(D95,'بيان العملاء'!$B$7:$J$170,6,0),"") -> 
B96: =IF(C96="","",COUNTIF($C$7:C96,C96)) ->  | C96: =IF(AND('[1]كشف حساب'!$F$5&'[1]كشف حساب'!$F$6="")*AND(D96='[1]كشف حساب'!$B$5),1,IF(AND(F96>='[1]كشف حساب'!$F$5,'حركة العملاء'!F96<='[1]كشف حساب'!$F$6)*AND(D96='[1]كشف حساب'!$B$5),1,"")) ->  | E96: =IFERROR(VLOOKUP(D96,'بيان العملاء'!$B$7:$J$170,2,0),"") ->  | I96: =IFERROR(VLOOKUP(D96,'بيان العملاء'!$B$7:$J$170,6,0),"") -> 
B97: =IF(C97="","",COUNTIF($C$7:C97,C97)) ->  | C97: =IF(AND('[1]كشف حساب'!$F$5&'[1]كشف حساب'!$F$6="")*AND(D97='[1]كشف حساب'!$B$5),1,IF(AND(F97>='[1]كشف حساب'!$F$5,'حركة العملاء'!F97<='[1]كشف حساب'!$F$6)*AND(D97='[1]كشف حساب'!$B$5),1,"")) ->  | E97: =IFERROR(VLOOKUP(D97,'بيان العملاء'!$B$7:$J$170,2,0),"") ->  | I97: =IFERROR(VLOOKUP(D97,'بيان العملاء'!$B$7:$J$170,6,0),"") -> 
B98: =IF(C98="","",COUNTIF($C$7:C98,C98)) ->  | C98: =IF(AND('[1]كشف حساب'!$F$5&'[1]كشف حساب'!$F$6="")*AND(D98='[1]كشف حساب'!$B$5),1,IF(AND(F98>='[1]كشف حساب'!$F$5,'حركة العملاء'!F98<='[1]كشف حساب'!$F$6)*AND(D98='[1]كشف حساب'!$B$5),1,"")) ->  | E98: =IFERROR(VLOOKUP(D98,'بيان العملاء'!$B$7:$J$170,2,0),"") ->  | I98: =IFERROR(VLOOKUP(D98,'بيان العملاء'!$B$7:$J$170,6,0),"") -> 
B99: =IF(C99="","",COUNTIF($C$7:C99,C99)) ->  | C99: =IF(AND('[1]كشف حساب'!$F$5&'[1]كشف حساب'!$F$6="")*AND(D99='[1]كشف حساب'!$B$5),1,IF(AND(F99>='[1]كشف حساب'!$F$5,'حركة العملاء'!F99<='[1]كشف حساب'!$F$6)*AND(D99='[1]كشف حساب'!$B$5),1,"")) ->  | E99: =IFERROR(VLOOKUP(D99,'بيان العملاء'!$B$7:$J$170,2,0),"") ->  | I99: =IFERROR(VLOOKUP(D99,'بيان العملاء'!$B$7:$J$170,6,0),"") -> 
B100: =IF(C100="","",COUNTIF($C$7:C100,C100)) ->  | C100: =IF(AND('[1]كشف حساب'!$F$5&'[1]كشف حساب'!$F$6="")*AND(D100='[1]كشف حساب'!$B$5),1,IF(AND(F100>='[1]كشف حساب'!$F$5,'حركة العملاء'!F100<='[1]كشف حساب'!$F$6)*AND(D100='[1]كشف حساب'!$B$5),1,"")) ->  | E100: =IFERROR(VLOOKUP(D100,'بيان العملاء'!$B$7:$J$170,2,0),"") ->  | I100: =IFERROR(VLOOKUP(D100,'بيان العملاء'!$B$7:$J$170,6,0),"") -> 
B101: =IF(C101="","",COUNTIF($C$7:C101,C101)) ->  | C101: =IF(AND('[1]كشف حساب'!$F$5&'[1]كشف حساب'!$F$6="")*AND(D101='[1]كشف حساب'!$B$5),1,IF(AND(F101>='[1]كشف حساب'!$F$5,'حركة العملاء'!F101<='[1]كشف حساب'!$F$6)*AND(D101='[1]كشف حساب'!$B$5),1,"")) ->  | E101: =IFERROR(VLOOKUP(D101,'بيان العملاء'!$B$7:$J$170,2,0),"") ->  | I101: =IFERROR(VLOOKUP(D101,'بيان العملاء'!$B$7:$J$170,6,0),"") -> 
B102: =IF(C102="","",COUNTIF($C$7:C102,C102)) ->  | C102: =IF(AND('[1]كشف حساب'!$F$5&'[1]كشف حساب'!$F$6="")*AND(D102='[1]كشف حساب'!$B$5),1,IF(AND(F102>='[1]كشف حساب'!$F$5,'حركة العملاء'!F102<='[1]كشف حساب'!$F$6)*AND(D102='[1]كشف حساب'!$B$5),1,"")) ->  | E102: =IFERROR(VLOOKUP(D102,'بيان العملاء'!$B$7:$J$170,2,0),"") ->  | I102: =IFERROR(VLOOKUP(D102,'بيان العملاء'!$B$7:$J$170,6,0),"") -> 
B103: =IF(C103="","",COUNTIF($C$7:C103,C103)) ->  | C103: =IF(AND('[1]كشف حساب'!$F$5&'[1]كشف حساب'!$F$6="")*AND(D103='[1]كشف حساب'!$B$5),1,IF(AND(F103>='[1]كشف حساب'!$F$5,'حركة العملاء'!F103<='[1]كشف حساب'!$F$6)*AND(D103='[1]كشف حساب'!$B$5),1,"")) ->  | E103: =IFERROR(VLOOKUP(D103,'بيان العملاء'!$B$7:$J$170,2,0),"") ->  | I103: =IFERROR(VLOOKUP(D103,'بيان العملاء'!$B$7:$J$170,6,0),"") -> 
B104: =IF(C104="","",COUNTIF($C$7:C104,C104)) ->  | C104: =IF(AND('[1]كشف حساب'!$F$5&'[1]كشف حساب'!$F$6="")*AND(D104='[1]كشف حساب'!$B$5),1,IF(AND(F104>='[1]كشف حساب'!$F$5,'حركة العملاء'!F104<='[1]كشف حساب'!$F$6)*AND(D104='[1]كشف حساب'!$B$5),1,"")) ->  | E104: =IFERROR(VLOOKUP(D104,'بيان العملاء'!$B$7:$J$170,2,0),"") ->  | I104: =IFERROR(VLOOKUP(D104,'بيان العملاء'!$B$7:$J$170,6,0),"") -> 
B105: =IF(C105="","",COUNTIF($C$7:C105,C105)) ->  | C105: =IF(AND('[1]كشف حساب'!$F$5&'[1]كشف حساب'!$F$6="")*AND(D105='[1]كشف حساب'!$B$5),1,IF(AND(F105>='[1]كشف حساب'!$F$5,'حركة العملاء'!F105<='[1]كشف حساب'!$F$6)*AND(D105='[1]كشف حساب'!$B$5),1,"")) ->  | E105: =IFERROR(VLOOKUP(D105,'بيان العملاء'!$B$7:$J$170,2,0),"") ->  | I105: =IFERROR(VLOOKUP(D105,'بيان العملاء'!$B$7:$J$170,6,0),"") -> 
B106: =IF(C106="","",COUNTIF($C$7:C106,C106)) ->  | C106: =IF(AND('[1]كشف حساب'!$F$5&'[1]كشف حساب'!$F$6="")*AND(D106='[1]كشف حساب'!$B$5),1,IF(AND(F106>='[1]كشف حساب'!$F$5,'حركة العملاء'!F106<='[1]كشف حساب'!$F$6)*AND(D106='[1]كشف حساب'!$B$5),1,"")) ->  | E106: =IFERROR(VLOOKUP(D106,'بيان العملاء'!$B$7:$J$170,2,0),"") ->  | I106: =IFERROR(VLOOKUP(D106,'بيان العملاء'!$B$7:$J$170,6,0),"") -> 
B107: =IF(C107="","",COUNTIF($C$7:C107,C107)) ->  | C107: =IF(AND('[1]كشف حساب'!$F$5&'[1]كشف حساب'!$F$6="")*AND(D107='[1]كشف حساب'!$B$5),1,IF(AND(F107>='[1]كشف حساب'!$F$5,'حركة العملاء'!F107<='[1]كشف حساب'!$F$6)*AND(D107='[1]كشف حساب'!$B$5),1,"")) ->  | E107: =IFERROR(VLOOKUP(D107,'بيان العملاء'!$B$7:$J$170,2,0),"") ->  | I107: =IFERROR(VLOOKUP(D107,'بيان العملاء'!$B$7:$J$170,6,0),"") -> 
B108: =IF(C108="","",COUNTIF($C$7:C108,C108)) ->  | C108: =IF(AND('[1]كشف حساب'!$F$5&'[1]كشف حساب'!$F$6="")*AND(D108='[1]كشف حساب'!$B$5),1,IF(AND(F108>='[1]كشف حساب'!$F$5,'حركة العملاء'!F108<='[1]كشف حساب'!$F$6)*AND(D108='[1]كشف حساب'!$B$5),1,"")) ->  | E108: =IFERROR(VLOOKUP(D108,'بيان العملاء'!$B$7:$J$170,2,0),"") ->  | I108: =IFERROR(VLOOKUP(D108,'بيان العملاء'!$B$7:$J$170,6,0),"") -> 
B109: =IF(C109="","",COUNTIF($C$7:C109,C109)) ->  | C109: =IF(AND('[1]كشف حساب'!$F$5&'[1]كشف حساب'!$F$6="")*AND(D109='[1]كشف حساب'!$B$5),1,IF(AND(F109>='[1]كشف حساب'!$F$5,'حركة العملاء'!F109<='[1]كشف حساب'!$F$6)*AND(D109='[1]كشف حساب'!$B$5),1,"")) ->  | E109: =IFERROR(VLOOKUP(D109,'بيان العملاء'!$B$7:$J$170,2,0),"") ->  | I109: =IFERROR(VLOOKUP(D109,'بيان العملاء'!$B$7:$J$170,6,0),"") -> 
B110: =IF(C110="","",COUNTIF($C$7:C110,C110)) ->  | C110: =IF(AND('[1]كشف حساب'!$F$5&'[1]كشف حساب'!$F$6="")*AND(D110='[1]كشف حساب'!$B$5),1,IF(AND(F110>='[1]كشف حساب'!$F$5,'حركة العملاء'!F110<='[1]كشف حساب'!$F$6)*AND(D110='[1]كشف حساب'!$B$5),1,"")) ->  | E110: =IFERROR(VLOOKUP(D110,'بيان العملاء'!$B$7:$J$170,2,0),"") ->  | I110: =IFERROR(VLOOKUP(D110,'بيان العملاء'!$B$7:$J$170,6,0),"") -> 
B111: =IF(C111="","",COUNTIF($C$7:C111,C111)) ->  | C111: =IF(AND('[1]كشف حساب'!$F$5&'[1]كشف حساب'!$F$6="")*AND(D111='[1]كشف حساب'!$B$5),1,IF(AND(F111>='[1]كشف حساب'!$F$5,'حركة العملاء'!F111<='[1]كشف حساب'!$F$6)*AND(D111='[1]كشف حساب'!$B$5),1,"")) ->  | E111: =IFERROR(VLOOKUP(D111,'بيان العملاء'!$B$7:$J$170,2,0),"") ->  | I111: =IFERROR(VLOOKUP(D111,'بيان العملاء'!$B$7:$J$170,6,0),"") -> 
B112: =IF(C112="","",COUNTIF($C$7:C112,C112)) ->  | C112: =IF(AND('[1]كشف حساب'!$F$5&'[1]كشف حساب'!$F$6="")*AND(D112='[1]كشف حساب'!$B$5),1,IF(AND(F112>='[1]كشف حساب'!$F$5,'حركة العملاء'!F112<='[1]كشف حساب'!$F$6)*AND(D112='[1]كشف حساب'!$B$5),1,"")) ->  | E112: =IFERROR(VLOOKUP(D112,'بيان العملاء'!$B$7:$J$170,2,0),"") ->  | I112: =IFERROR(VLOOKUP(D112,'بيان العملاء'!$B$7:$J$170,6,0),"") -> 
B113: =IF(C113="","",COUNTIF($C$7:C113,C113)) ->  | C113: =IF(AND('[1]كشف حساب'!$F$5&'[1]كشف حساب'!$F$6="")*AND(D113='[1]كشف حساب'!$B$5),1,IF(AND(F113>='[1]كشف حساب'!$F$5,'حركة العملاء'!F113<='[1]كشف حساب'!$F$6)*AND(D113='[1]كشف حساب'!$B$5),1,"")) ->  | E113: =IFERROR(VLOOKUP(D113,'بيان العملاء'!$B$7:$J$170,2,0),"") ->  | I113: =IFERROR(VLOOKUP(D113,'بيان العملاء'!$B$7:$J$170,6,0),"") -> 
B114: =IF(C114="","",COUNTIF($C$7:C114,C114)) ->  | C114: =IF(AND('[1]كشف حساب'!$F$5&'[1]كشف حساب'!$F$6="")*AND(D114='[1]كشف حساب'!$B$5),1,IF(AND(F114>='[1]كشف حساب'!$F$5,'حركة العملاء'!F114<='[1]كشف حساب'!$F$6)*AND(D114='[1]كشف حساب'!$B$5),1,"")) ->  | E114: =IFERROR(VLOOKUP(D114,'بيان العملاء'!$B$7:$J$170,2,0),"") ->  | I114: =IFERROR(VLOOKUP(D114,'بيان العملاء'!$B$7:$J$170,6,0),"") -> 
B115: =IF(C115="","",COUNTIF($C$7:C115,C115)) ->  | C115: =IF(AND('[1]كشف حساب'!$F$5&'[1]كشف حساب'!$F$6="")*AND(D115='[1]كشف حساب'!$B$5),1,IF(AND(F115>='[1]كشف حساب'!$F$5,'حركة العملاء'!F115<='[1]كشف حساب'!$F$6)*AND(D115='[1]كشف حساب'!$B$5),1,"")) ->  | E115: =IFERROR(VLOOKUP(D115,'بيان العملاء'!$B$7:$J$170,2,0),"") ->  | I115: =IFERROR(VLOOKUP(D115,'بيان العملاء'!$B$7:$J$170,6,0),"") -> 
B116: =IF(C116="","",COUNTIF($C$7:C116,C116)) ->  | C116: =IF(AND('[1]كشف حساب'!$F$5&'[1]كشف حساب'!$F$6="")*AND(D116='[1]كشف حساب'!$B$5),1,IF(AND(F116>='[1]كشف حساب'!$F$5,'حركة العملاء'!F116<='[1]كشف حساب'!$F$6)*AND(D116='[1]كشف حساب'!$B$5),1,"")) ->  | E116: =IFERROR(VLOOKUP(D116,'بيان العملاء'!$B$7:$J$170,2,0),"") ->  | I116: =IFERROR(VLOOKUP(D116,'بيان العملاء'!$B$7:$J$170,6,0),"") -> 
B117: =IF(C117="","",COUNTIF($C$7:C117,C117)) ->  | C117: =IF(AND('[1]كشف حساب'!$F$5&'[1]كشف حساب'!$F$6="")*AND(D117='[1]كشف حساب'!$B$5),1,IF(AND(F117>='[1]كشف حساب'!$F$5,'حركة العملاء'!F117<='[1]كشف حساب'!$F$6)*AND(D117='[1]كشف حساب'!$B$5),1,"")) ->  | E117: =IFERROR(VLOOKUP(D117,'بيان العملاء'!$B$7:$J$170,2,0),"") ->  | I117: =IFERROR(VLOOKUP(D117,'بيان العملاء'!$B$7:$J$170,6,0),"") -> 
B118: =IF(C118="","",COUNTIF($C$7:C118,C118)) ->  | C118: =IF(AND('[1]كشف حساب'!$F$5&'[1]كشف حساب'!$F$6="")*AND(D118='[1]كشف حساب'!$B$5),1,IF(AND(F118>='[1]كشف حساب'!$F$5,'حركة العملاء'!F118<='[1]كشف حساب'!$F$6)*AND(D118='[1]كشف حساب'!$B$5),1,"")) ->  | E118: =IFERROR(VLOOKUP(D118,'بيان العملاء'!$B$7:$J$170,2,0),"") ->  | I118: =IFERROR(VLOOKUP(D118,'بيان العملاء'!$B$7:$J$170,6,0),"") -> 
B119: =IF(C119="","",COUNTIF($C$7:C119,C119)) ->  | C119: =IF(AND('[1]كشف حساب'!$F$5&'[1]كشف حساب'!$F$6="")*AND(D119='[1]كشف حساب'!$B$5),1,IF(AND(F119>='[1]كشف حساب'!$F$5,'حركة العملاء'!F119<='[1]كشف حساب'!$F$6)*AND(D119='[1]كشف حساب'!$B$5),1,"")) ->  | E119: =IFERROR(VLOOKUP(D119,'بيان العملاء'!$B$7:$J$170,2,0),"") ->  | I119: =IFERROR(VLOOKUP(D119,'بيان العملاء'!$B$7:$J$170,6,0),"") -> 
B120: =IF(C120="","",COUNTIF($C$7:C120,C120)) ->  | C120: =IF(AND('[1]كشف حساب'!$F$5&'[1]كشف حساب'!$F$6="")*AND(D120='[1]كشف حساب'!$B$5),1,IF(AND(F120>='[1]كشف حساب'!$F$5,'حركة العملاء'!F120<='[1]كشف حساب'!$F$6)*AND(D120='[1]كشف حساب'!$B$5),1,"")) ->  | E120: =IFERROR(VLOOKUP(D120,'بيان العملاء'!$B$7:$J$170,2,0),"") ->  | I120: =IFERROR(VLOOKUP(D120,'بيان العملاء'!$B$7:$J$170,6,0),"") -> 
B121: =IF(C121="","",COUNTIF($C$7:C121,C121)) ->  | C121: =IF(AND('[1]كشف حساب'!$F$5&'[1]كشف حساب'!$F$6="")*AND(D121='[1]كشف حساب'!$B$5),1,IF(AND(F121>='[1]كشف حساب'!$F$5,'حركة العملاء'!F121<='[1]كشف حساب'!$F$6)*AND(D121='[1]كشف حساب'!$B$5),1,"")) ->  | E121: =IFERROR(VLOOKUP(D121,'بيان العملاء'!$B$7:$J$170,2,0),"") ->  | I121: =IFERROR(VLOOKUP(D121,'بيان العملاء'!$B$7:$J$170,6,0),"") -> 
B122: =IF(C122="","",COUNTIF($C$7:C122,C122)) ->  | C122: =IF(AND('[1]كشف حساب'!$F$5&'[1]كشف حساب'!$F$6="")*AND(D122='[1]كشف حساب'!$B$5),1,IF(AND(F122>='[1]كشف حساب'!$F$5,'حركة العملاء'!F122<='[1]كشف حساب'!$F$6)*AND(D122='[1]كشف حساب'!$B$5),1,"")) ->  | E122: =IFERROR(VLOOKUP(D122,'بيان العملاء'!$B$7:$J$170,2,0),"") ->  | I122: =IFERROR(VLOOKUP(D122,'بيان العملاء'!$B$7:$J$170,6,0),"") -> 
B123: =IF(C123="","",COUNTIF($C$7:C123,C123)) ->  | C123: =IF(AND('[1]كشف حساب'!$F$5&'[1]كشف حساب'!$F$6="")*AND(D123='[1]كشف حساب'!$B$5),1,IF(AND(F123>='[1]كشف حساب'!$F$5,'حركة العملاء'!F123<='[1]كشف حساب'!$F$6)*AND(D123='[1]كشف حساب'!$B$5),1,"")) ->  | E123: =IFERROR(VLOOKUP(D123,'بيان العملاء'!$B$7:$J$170,2,0),"") ->  | I123: =IFERROR(VLOOKUP(D123,'بيان العملاء'!$B$7:$J$170,6,0),"") -> 
B124: =IF(C124="","",COUNTIF($C$7:C124,C124)) ->  | C124: =IF(AND('[1]كشف حساب'!$F$5&'[1]كشف حساب'!$F$6="")*AND(D124='[1]كشف حساب'!$B$5),1,IF(AND(F124>='[1]كشف حساب'!$F$5,'حركة العملاء'!F124<='[1]كشف حساب'!$F$6)*AND(D124='[1]كشف حساب'!$B$5),1,"")) ->  | E124: =IFERROR(VLOOKUP(D124,'بيان العملاء'!$B$7:$J$170,2,0),"") ->  | I124: =IFERROR(VLOOKUP(D124,'بيان العملاء'!$B$7:$J$170,6,0),"") -> 
B125: =IF(C125="","",COUNTIF($C$7:C125,C125)) ->  | C125: =IF(AND('[1]كشف حساب'!$F$5&'[1]كشف حساب'!$F$6="")*AND(D125='[1]كشف حساب'!$B$5),1,IF(AND(F125>='[1]كشف حساب'!$F$5,'حركة العملاء'!F125<='[1]كشف حساب'!$F$6)*AND(D125='[1]كشف حساب'!$B$5),1,"")) ->  | E125: =IFERROR(VLOOKUP(D125,'بيان العملاء'!$B$7:$J$170,2,0),"") ->  | I125: =IFERROR(VLOOKUP(D125,'بيان العملاء'!$B$7:$J$170,6,0),"") -> 
B126: =IF(C126="","",COUNTIF($C$7:C126,C126)) ->  | C126: =IF(AND('[1]كشف حساب'!$F$5&'[1]كشف حساب'!$F$6="")*AND(D126='[1]كشف حساب'!$B$5),1,IF(AND(F126>='[1]كشف حساب'!$F$5,'حركة العملاء'!F126<='[1]كشف حساب'!$F$6)*AND(D126='[1]كشف حساب'!$B$5),1,"")) ->  | E126: =IFERROR(VLOOKUP(D126,'بيان العملاء'!$B$7:$J$170,2,0),"") ->  | I126: =IFERROR(VLOOKUP(D126,'بيان العملاء'!$B$7:$J$170,6,0),"") -> 
B127: =IF(C127="","",COUNTIF($C$7:C127,C127)) ->  | C127: =IF(AND('[1]كشف حساب'!$F$5&'[1]كشف حساب'!$F$6="")*AND(D127='[1]كشف حساب'!$B$5),1,IF(AND(F127>='[1]كشف حساب'!$F$5,'حركة العملاء'!F127<='[1]كشف حساب'!$F$6)*AND(D127='[1]كشف حساب'!$B$5),1,"")) ->  | E127: =IFERROR(VLOOKUP(D127,'بيان العملاء'!$B$7:$J$170,2,0),"") ->  | I127: =IFERROR(VLOOKUP(D127,'بيان العملاء'!$B$7:$J$170,6,0),"") -> 
B128: =IF(C128="","",COUNTIF($C$7:C128,C128)) ->  | C128: =IF(AND('[1]كشف حساب'!$F$5&'[1]كشف حساب'!$F$6="")*AND(D128='[1]كشف حساب'!$B$5),1,IF(AND(F128>='[1]كشف حساب'!$F$5,'حركة العملاء'!F128<='[1]كشف حساب'!$F$6)*AND(D128='[1]كشف حساب'!$B$5),1,"")) ->  | E128: =IFERROR(VLOOKUP(D128,'بيان العملاء'!$B$7:$J$170,2,0),"") ->  | I128: =IFERROR(VLOOKUP(D128,'بيان العملاء'!$B$7:$J$170,6,0),"") -> 
B129: =IF(C129="","",COUNTIF($C$7:C129,C129)) ->  | C129: =IF(AND('[1]كشف حساب'!$F$5&'[1]كشف حساب'!$F$6="")*AND(D129='[1]كشف حساب'!$B$5),1,IF(AND(F129>='[1]كشف حساب'!$F$5,'حركة العملاء'!F129<='[1]كشف حساب'!$F$6)*AND(D129='[1]كشف حساب'!$B$5),1,"")) ->  | E129: =IFERROR(VLOOKUP(D129,'بيان العملاء'!$B$7:$J$170,2,0),"") ->  | I129: =IFERROR(VLOOKUP(D129,'بيان العملاء'!$B$7:$J$170,6,0),"") -> 
B130: =IF(C130="","",COUNTIF($C$7:C130,C130)) ->  | C130: =IF(AND('[1]كشف حساب'!$F$5&'[1]كشف حساب'!$F$6="")*AND(D130='[1]كشف حساب'!$B$5),1,IF(AND(F130>='[1]كشف حساب'!$F$5,'حركة العملاء'!F130<='[1]كشف حساب'!$F$6)*AND(D130='[1]كشف حساب'!$B$5),1,"")) ->  | E130: =IFERROR(VLOOKUP(D130,'بيان العملاء'!$B$7:$J$170,2,0),"") ->  | I130: =IFERROR(VLOOKUP(D130,'بيان العملاء'!$B$7:$J$170,6,0),"") -> 
B131: =IF(C131="","",COUNTIF($C$7:C131,C131)) ->  | C131: =IF(AND('[1]كشف حساب'!$F$5&'[1]كشف حساب'!$F$6="")*AND(D131='[1]كشف حساب'!$B$5),1,IF(AND(F131>='[1]كشف حساب'!$F$5,'حركة العملاء'!F131<='[1]كشف حساب'!$F$6)*AND(D131='[1]كشف حساب'!$B$5),1,"")) ->  | E131: =IFERROR(VLOOKUP(D131,'بيان العملاء'!$B$7:$J$170,2,0),"") ->  | I131: =IFERROR(VLOOKUP(D131,'بيان العملاء'!$B$7:$J$170,6,0),"") -> 
B132: =IF(C132="","",COUNTIF($C$7:C132,C132)) ->  | C132: =IF(AND('[1]كشف حساب'!$F$5&'[1]كشف حساب'!$F$6="")*AND(D132='[1]كشف حساب'!$B$5),1,IF(AND(F132>='[1]كشف حساب'!$F$5,'حركة العملاء'!F132<='[1]كشف حساب'!$F$6)*AND(D132='[1]كشف حساب'!$B$5),1,"")) ->  | E132: =IFERROR(VLOOKUP(D132,'بيان العملاء'!$B$7:$J$170,2,0),"") ->  | I132: =IFERROR(VLOOKUP(D132,'بيان العملاء'!$B$7:$J$170,6,0),"") -> 
B133: =IF(C133="","",COUNTIF($C$7:C133,C133)) ->  | C133: =IF(AND('[1]كشف حساب'!$F$5&'[1]كشف حساب'!$F$6="")*AND(D133='[1]كشف حساب'!$B$5),1,IF(AND(F133>='[1]كشف حساب'!$F$5,'حركة العملاء'!F133<='[1]كشف حساب'!$F$6)*AND(D133='[1]كشف حساب'!$B$5),1,"")) ->  | E133: =IFERROR(VLOOKUP(D133,'بيان العملاء'!$B$7:$J$170,2,0),"") ->  | I133: =IFERROR(VLOOKUP(D133,'بيان العملاء'!$B$7:$J$170,6,0),"") -> 
B134: =IF(C134="","",COUNTIF($C$7:C134,C134)) ->  | C134: =IF(AND('[1]كشف حساب'!$F$5&'[1]كشف حساب'!$F$6="")*AND(D134='[1]كشف حساب'!$B$5),1,IF(AND(F134>='[1]كشف حساب'!$F$5,'حركة العملاء'!F134<='[1]كشف حساب'!$F$6)*AND(D134='[1]كشف حساب'!$B$5),1,"")) ->  | E134: =IFERROR(VLOOKUP(D134,'بيان العملاء'!$B$7:$J$170,2,0),"") ->  | I134: =IFERROR(VLOOKUP(D134,'بيان العملاء'!$B$7:$J$170,6,0),"") -> 
B135: =IF(C135="","",COUNTIF($C$7:C135,C135)) ->  | C135: =IF(AND('[1]كشف حساب'!$F$5&'[1]كشف حساب'!$F$6="")*AND(D135='[1]كشف حساب'!$B$5),1,IF(AND(F135>='[1]كشف حساب'!$F$5,'حركة العملاء'!F135<='[1]كشف حساب'!$F$6)*AND(D135='[1]كشف حساب'!$B$5),1,"")) ->  | E135: =IFERROR(VLOOKUP(D135,'بيان العملاء'!$B$7:$J$170,2,0),"") ->  | I135: =IFERROR(VLOOKUP(D135,'بيان العملاء'!$B$7:$J$170,6,0),"") -> 
B136: =IF(C136="","",COUNTIF($C$7:C136,C136)) ->  | C136: =IF(AND('[1]كشف حساب'!$F$5&'[1]كشف حساب'!$F$6="")*AND(D136='[1]كشف حساب'!$B$5),1,IF(AND(F136>='[1]كشف حساب'!$F$5,'حركة العملاء'!F136<='[1]كشف حساب'!$F$6)*AND(D136='[1]كشف حساب'!$B$5),1,"")) ->  | E136: =IFERROR(VLOOKUP(D136,'بيان العملاء'!$B$7:$J$170,2,0),"") ->  | I136: =IFERROR(VLOOKUP(D136,'بيان العملاء'!$B$7:$J$170,6,0),"") -> 
B137: =IF(C137="","",COUNTIF($C$7:C137,C137)) ->  | C137: =IF(AND('[1]كشف حساب'!$F$5&'[1]كشف حساب'!$F$6="")*AND(D137='[1]كشف حساب'!$B$5),1,IF(AND(F137>='[1]كشف حساب'!$F$5,'حركة العملاء'!F137<='[1]كشف حساب'!$F$6)*AND(D137='[1]كشف حساب'!$B$5),1,"")) ->  | E137: =IFERROR(VLOOKUP(D137,'بيان العملاء'!$B$7:$J$170,2,0),"") ->  | I137: =IFERROR(VLOOKUP(D137,'بيان العملاء'!$B$7:$J$170,6,0),"") -> 
B138: =IF(C138="","",COUNTIF($C$7:C138,C138)) ->  | C138: =IF(AND('[1]كشف حساب'!$F$5&'[1]كشف حساب'!$F$6="")*AND(D138='[1]كشف حساب'!$B$5),1,IF(AND(F138>='[1]كشف حساب'!$F$5,'حركة العملاء'!F138<='[1]كشف حساب'!$F$6)*AND(D138='[1]كشف حساب'!$B$5),1,"")) ->  | E138: =IFERROR(VLOOKUP(D138,'بيان العملاء'!$B$7:$J$170,2,0),"") ->  | I138: =IFERROR(VLOOKUP(D138,'بيان العملاء'!$B$7:$J$170,6,0),"") -> 
B139: =IF(C139="","",COUNTIF($C$7:C139,C139)) ->  | C139: =IF(AND('[1]كشف حساب'!$F$5&'[1]كشف حساب'!$F$6="")*AND(D139='[1]كشف حساب'!$B$5),1,IF(AND(F139>='[1]كشف حساب'!$F$5,'حركة العملاء'!F139<='[1]كشف حساب'!$F$6)*AND(D139='[1]كشف حساب'!$B$5),1,"")) ->  | E139: =IFERROR(VLOOKUP(D139,'بيان العملاء'!$B$7:$J$170,2,0),"") ->  | I139: =IFERROR(VLOOKUP(D139,'بيان العملاء'!$B$7:$J$170,6,0),"") -> 
B140: =IF(C140="","",COUNTIF($C$7:C140,C140)) ->  | C140: =IF(AND('[1]كشف حساب'!$F$5&'[1]كشف حساب'!$F$6="")*AND(D140='[1]كشف حساب'!$B$5),1,IF(AND(F140>='[1]كشف حساب'!$F$5,'حركة العملاء'!F140<='[1]كشف حساب'!$F$6)*AND(D140='[1]كشف حساب'!$B$5),1,"")) ->  | E140: =IFERROR(VLOOKUP(D140,'بيان العملاء'!$B$7:$J$170,2,0),"") ->  | I140: =IFERROR(VLOOKUP(D140,'بيان العملاء'!$B$7:$J$170,6,0),"") -> 
B141: =IF(C141="","",COUNTIF($C$7:C141,C141)) ->  | C141: =IF(AND('[1]كشف حساب'!$F$5&'[1]كشف حساب'!$F$6="")*AND(D141='[1]كشف حساب'!$B$5),1,IF(AND(F141>='[1]كشف حساب'!$F$5,'حركة العملاء'!F141<='[1]كشف حساب'!$F$6)*AND(D141='[1]كشف حساب'!$B$5),1,"")) ->  | E141: =IFERROR(VLOOKUP(D141,'بيان العملاء'!$B$7:$J$170,2,0),"") ->  | I141: =IFERROR(VLOOKUP(D141,'بيان العملاء'!$B$7:$J$170,6,0),"") -> 
B142: =IF(C142="","",COUNTIF($C$7:C142,C142)) ->  | C142: =IF(AND('[1]كشف حساب'!$F$5&'[1]كشف حساب'!$F$6="")*AND(D142='[1]كشف حساب'!$B$5),1,IF(AND(F142>='[1]كشف حساب'!$F$5,'حركة العملاء'!F142<='[1]كشف حساب'!$F$6)*AND(D142='[1]كشف حساب'!$B$5),1,"")) ->  | E142: =IFERROR(VLOOKUP(D142,'بيان العملاء'!$B$7:$J$170,2,0),"") ->  | I142: =IFERROR(VLOOKUP(D142,'بيان العملاء'!$B$7:$J$170,6,0),"") -> 
B143: =IF(C143="","",COUNTIF($C$7:C143,C143)) ->  | C143: =IF(AND('[1]كشف حساب'!$F$5&'[1]كشف حساب'!$F$6="")*AND(D143='[1]كشف حساب'!$B$5),1,IF(AND(F143>='[1]كشف حساب'!$F$5,'حركة العملاء'!F143<='[1]كشف حساب'!$F$6)*AND(D143='[1]كشف حساب'!$B$5),1,"")) ->  | E143: =IFERROR(VLOOKUP(D143,'بيان العملاء'!$B$7:$J$170,2,0),"") ->  | I143: =IFERROR(VLOOKUP(D143,'بيان العملاء'!$B$7:$J$170,6,0),"") -> 
B144: =IF(C144="","",COUNTIF($C$7:C144,C144)) ->  | C144: =IF(AND('[1]كشف حساب'!$F$5&'[1]كشف حساب'!$F$6="")*AND(D144='[1]كشف حساب'!$B$5),1,IF(AND(F144>='[1]كشف حساب'!$F$5,'حركة العملاء'!F144<='[1]كشف حساب'!$F$6)*AND(D144='[1]كشف حساب'!$B$5),1,"")) ->  | E144: =IFERROR(VLOOKUP(D144,'بيان العملاء'!$B$7:$J$170,2,0),"") ->  | I144: =IFERROR(VLOOKUP(D144,'بيان العملاء'!$B$7:$J$170,6,0),"") -> 
B145: =IF(C145="","",COUNTIF($C$7:C145,C145)) ->  | C145: =IF(AND('[1]كشف حساب'!$F$5&'[1]كشف حساب'!$F$6="")*AND(D145='[1]كشف حساب'!$B$5),1,IF(AND(F145>='[1]كشف حساب'!$F$5,'حركة العملاء'!F145<='[1]كشف حساب'!$F$6)*AND(D145='[1]كشف حساب'!$B$5),1,"")) ->  | E145: =IFERROR(VLOOKUP(D145,'بيان العملاء'!$B$7:$J$170,2,0),"") ->  | I145: =IFERROR(VLOOKUP(D145,'بيان العملاء'!$B$7:$J$170,6,0),"") -> 
B146: =IF(C146="","",COUNTIF($C$7:C146,C146)) ->  | C146: =IF(AND('[1]كشف حساب'!$F$5&'[1]كشف حساب'!$F$6="")*AND(D146='[1]كشف حساب'!$B$5),1,IF(AND(F146>='[1]كشف حساب'!$F$5,'حركة العملاء'!F146<='[1]كشف حساب'!$F$6)*AND(D146='[1]كشف حساب'!$B$5),1,"")) ->  | E146: =IFERROR(VLOOKUP(D146,'بيان العملاء'!$B$7:$J$170,2,0),"") ->  | I146: =IFERROR(VLOOKUP(D146,'بيان العملاء'!$B$7:$J$170,6,0),"") -> 
B147: =IF(C147="","",COUNTIF($C$7:C147,C147)) ->  | C147: =IF(AND('[1]كشف حساب'!$F$5&'[1]كشف حساب'!$F$6="")*AND(D147='[1]كشف حساب'!$B$5),1,IF(AND(F147>='[1]كشف حساب'!$F$5,'حركة العملاء'!F147<='[1]كشف حساب'!$F$6)*AND(D147='[1]كشف حساب'!$B$5),1,"")) ->  | E147: =IFERROR(VLOOKUP(D147,'بيان العملاء'!$B$7:$J$170,2,0),"") ->  | I147: =IFERROR(VLOOKUP(D147,'بيان العملاء'!$B$7:$J$170,6,0),"") -> 
B148: =IF(C148="","",COUNTIF($C$7:C148,C148)) ->  | C148: =IF(AND('[1]كشف حساب'!$F$5&'[1]كشف حساب'!$F$6="")*AND(D148='[1]كشف حساب'!$B$5),1,IF(AND(F148>='[1]كشف حساب'!$F$5,'حركة العملاء'!F148<='[1]كشف حساب'!$F$6)*AND(D148='[1]كشف حساب'!$B$5),1,"")) ->  | E148: =IFERROR(VLOOKUP(D148,'بيان العملاء'!$B$7:$J$170,2,0),"") ->  | I148: =IFERROR(VLOOKUP(D148,'بيان العملاء'!$B$7:$J$170,6,0),"") -> 
B149: =IF(C149="","",COUNTIF($C$7:C149,C149)) ->  | C149: =IF(AND('[1]كشف حساب'!$F$5&'[1]كشف حساب'!$F$6="")*AND(D149='[1]كشف حساب'!$B$5),1,IF(AND(F149>='[1]كشف حساب'!$F$5,'حركة العملاء'!F149<='[1]كشف حساب'!$F$6)*AND(D149='[1]كشف حساب'!$B$5),1,"")) ->  | E149: =IFERROR(VLOOKUP(D149,'بيان العملاء'!$B$7:$J$170,2,0),"") ->  | I149: =IFERROR(VLOOKUP(D149,'بيان العملاء'!$B$7:$J$170,6,0),"") -> 
B150: =IF(C150="","",COUNTIF($C$7:C150,C150)) ->  | C150: =IF(AND('[1]كشف حساب'!$F$5&'[1]كشف حساب'!$F$6="")*AND(D150='[1]كشف حساب'!$B$5),1,IF(AND(F150>='[1]كشف حساب'!$F$5,'حركة العملاء'!F150<='[1]كشف حساب'!$F$6)*AND(D150='[1]كشف حساب'!$B$5),1,"")) ->  | E150: =IFERROR(VLOOKUP(D150,'بيان العملاء'!$B$7:$J$170,2,0),"") ->  | I150: =IFERROR(VLOOKUP(D150,'بيان العملاء'!$B$7:$J$170,6,0),"") -> 
B151: =IF(C151="","",COUNTIF($C$7:C151,C151)) ->  | C151: =IF(AND('[1]كشف حساب'!$F$5&'[1]كشف حساب'!$F$6="")*AND(D151='[1]كشف حساب'!$B$5),1,IF(AND(F151>='[1]كشف حساب'!$F$5,'حركة العملاء'!F151<='[1]كشف حساب'!$F$6)*AND(D151='[1]كشف حساب'!$B$5),1,"")) ->  | E151: =IFERROR(VLOOKUP(D151,'بيان العملاء'!$B$7:$J$170,2,0),"") ->  | I151: =IFERROR(VLOOKUP(D151,'بيان العملاء'!$B$7:$J$170,6,0),"") -> 
B152: =IF(C152="","",COUNTIF($C$7:C152,C152)) ->  | C152: =IF(AND('[1]كشف حساب'!$F$5&'[1]كشف حساب'!$F$6="")*AND(D152='[1]كشف حساب'!$B$5),1,IF(AND(F152>='[1]كشف حساب'!$F$5,'حركة العملاء'!F152<='[1]كشف حساب'!$F$6)*AND(D152='[1]كشف حساب'!$B$5),1,"")) ->  | E152: =IFERROR(VLOOKUP(D152,'بيان العملاء'!$B$7:$J$170,2,0),"") ->  | I152: =IFERROR(VLOOKUP(D152,'بيان العملاء'!$B$7:$J$170,6,0),"") -> 
B153: =IF(C153="","",COUNTIF($C$7:C153,C153)) ->  | C153: =IF(AND('[1]كشف حساب'!$F$5&'[1]كشف حساب'!$F$6="")*AND(D153='[1]كشف حساب'!$B$5),1,IF(AND(F153>='[1]كشف حساب'!$F$5,'حركة العملاء'!F153<='[1]كشف حساب'!$F$6)*AND(D153='[1]كشف حساب'!$B$5),1,"")) ->  | E153: =IFERROR(VLOOKUP(D153,'بيان العملاء'!$B$7:$J$170,2,0),"") ->  | I153: =IFERROR(VLOOKUP(D153,'بيان العملاء'!$B$7:$J$170,6,0),"") -> 
B154: =IF(C154="","",COUNTIF($C$7:C154,C154)) ->  | C154: =IF(AND('[1]كشف حساب'!$F$5&'[1]كشف حساب'!$F$6="")*AND(D154='[1]كشف حساب'!$B$5),1,IF(AND(F154>='[1]كشف حساب'!$F$5,'حركة العملاء'!F154<='[1]كشف حساب'!$F$6)*AND(D154='[1]كشف حساب'!$B$5),1,"")) ->  | E154: =IFERROR(VLOOKUP(D154,'بيان العملاء'!$B$7:$J$170,2,0),"") ->  | I154: =IFERROR(VLOOKUP(D154,'بيان العملاء'!$B$7:$J$170,6,0),"") -> 
B155: =IF(C155="","",COUNTIF($C$7:C155,C155)) ->  | C155: =IF(AND('[1]كشف حساب'!$F$5&'[1]كشف حساب'!$F$6="")*AND(D155='[1]كشف حساب'!$B$5),1,IF(AND(F155>='[1]كشف حساب'!$F$5,'حركة العملاء'!F155<='[1]كشف حساب'!$F$6)*AND(D155='[1]كشف حساب'!$B$5),1,"")) ->  | E155: =IFERROR(VLOOKUP(D155,'بيان العملاء'!$B$7:$J$170,2,0),"") ->  | I155: =IFERROR(VLOOKUP(D155,'بيان العملاء'!$B$7:$J$170,6,0),"") -> 
B156: =IF(C156="","",COUNTIF($C$7:C156,C156)) ->  | C156: =IF(AND('[1]كشف حساب'!$F$5&'[1]كشف حساب'!$F$6="")*AND(D156='[1]كشف حساب'!$B$5),1,IF(AND(F156>='[1]كشف حساب'!$F$5,'حركة العملاء'!F156<='[1]كشف حساب'!$F$6)*AND(D156='[1]كشف حساب'!$B$5),1,"")) ->  | E156: =IFERROR(VLOOKUP(D156,'بيان العملاء'!$B$7:$J$170,2,0),"") ->  | I156: =IFERROR(VLOOKUP(D156,'بيان العملاء'!$B$7:$J$170,6,0),"") -> 
B157: =IF(C157="","",COUNTIF($C$7:C157,C157)) ->  | C157: =IF(AND('[1]كشف حساب'!$F$5&'[1]كشف حساب'!$F$6="")*AND(D157='[1]كشف حساب'!$B$5),1,IF(AND(F157>='[1]كشف حساب'!$F$5,'حركة العملاء'!F157<='[1]كشف حساب'!$F$6)*AND(D157='[1]كشف حساب'!$B$5),1,"")) ->  | E157: =IFERROR(VLOOKUP(D157,'بيان العملاء'!$B$7:$J$170,2,0),"") ->  | I157: =IFERROR(VLOOKUP(D157,'بيان العملاء'!$B$7:$J$170,6,0),"") -> 
B158: =IF(C158="","",COUNTIF($C$7:C158,C158)) ->  | C158: =IF(AND('[1]كشف حساب'!$F$5&'[1]كشف حساب'!$F$6="")*AND(D158='[1]كشف حساب'!$B$5),1,IF(AND(F158>='[1]كشف حساب'!$F$5,'حركة العملاء'!F158<='[1]كشف حساب'!$F$6)*AND(D158='[1]كشف حساب'!$B$5),1,"")) ->  | E158: =IFERROR(VLOOKUP(D158,'بيان العملاء'!$B$7:$J$170,2,0),"") ->  | I158: =IFERROR(VLOOKUP(D158,'بيان العملاء'!$B$7:$J$170,6,0),"") -> 
B159: =IF(C159="","",COUNTIF($C$7:C159,C159)) ->  | C159: =IF(AND('[1]كشف حساب'!$F$5&'[1]كشف حساب'!$F$6="")*AND(D159='[1]كشف حساب'!$B$5),1,IF(AND(F159>='[1]كشف حساب'!$F$5,'حركة العملاء'!F159<='[1]كشف حساب'!$F$6)*AND(D159='[1]كشف حساب'!$B$5),1,"")) ->  | E159: =IFERROR(VLOOKUP(D159,'بيان العملاء'!$B$7:$J$170,2,0),"") ->  | I159: =IFERROR(VLOOKUP(D159,'بيان العملاء'!$B$7:$J$170,6,0),"") -> 
B160: =IF(C160="","",COUNTIF($C$7:C160,C160)) ->  | C160: =IF(AND('[1]كشف حساب'!$F$5&'[1]كشف حساب'!$F$6="")*AND(D160='[1]كشف حساب'!$B$5),1,IF(AND(F160>='[1]كشف حساب'!$F$5,'حركة العملاء'!F160<='[1]كشف حساب'!$F$6)*AND(D160='[1]كشف حساب'!$B$5),1,"")) ->  | E160: =IFERROR(VLOOKUP(D160,'بيان العملاء'!$B$7:$J$170,2,0),"") ->  | I160: =IFERROR(VLOOKUP(D160,'بيان العملاء'!$B$7:$J$170,6,0),"") -> 
B161: =IF(C161="","",COUNTIF($C$7:C161,C161)) ->  | C161: =IF(AND('[1]كشف حساب'!$F$5&'[1]كشف حساب'!$F$6="")*AND(D161='[1]كشف حساب'!$B$5),1,IF(AND(F161>='[1]كشف حساب'!$F$5,'حركة العملاء'!F161<='[1]كشف حساب'!$F$6)*AND(D161='[1]كشف حساب'!$B$5),1,"")) ->  | E161: =IFERROR(VLOOKUP(D161,'بيان العملاء'!$B$7:$J$170,2,0),"") ->  | I161: =IFERROR(VLOOKUP(D161,'بيان العملاء'!$B$7:$J$170,6,0),"") -> 
B162: =IF(C162="","",COUNTIF($C$7:C162,C162)) ->  | C162: =IF(AND('[1]كشف حساب'!$F$5&'[1]كشف حساب'!$F$6="")*AND(D162='[1]كشف حساب'!$B$5),1,IF(AND(F162>='[1]كشف حساب'!$F$5,'حركة العملاء'!F162<='[1]كشف حساب'!$F$6)*AND(D162='[1]كشف حساب'!$B$5),1,"")) ->  | E162: =IFERROR(VLOOKUP(D162,'بيان العملاء'!$B$7:$J$170,2,0),"") ->  | I162: =IFERROR(VLOOKUP(D162,'بيان العملاء'!$B$7:$J$170,6,0),"") -> 
B163: =IF(C163="","",COUNTIF($C$7:C163,C163)) ->  | C163: =IF(AND('[1]كشف حساب'!$F$5&'[1]كشف حساب'!$F$6="")*AND(D163='[1]كشف حساب'!$B$5),1,IF(AND(F163>='[1]كشف حساب'!$F$5,'حركة العملاء'!F163<='[1]كشف حساب'!$F$6)*AND(D163='[1]كشف حساب'!$B$5),1,"")) ->  | E163: =IFERROR(VLOOKUP(D163,'بيان العملاء'!$B$7:$J$170,2,0),"") ->  | I163: =IFERROR(VLOOKUP(D163,'بيان العملاء'!$B$7:$J$170,6,0),"") -> 
B164: =IF(C164="","",COUNTIF($C$7:C164,C164)) ->  | C164: =IF(AND('[1]كشف حساب'!$F$5&'[1]كشف حساب'!$F$6="")*AND(D164='[1]كشف حساب'!$B$5),1,IF(AND(F164>='[1]كشف حساب'!$F$5,'حركة العملاء'!F164<='[1]كشف حساب'!$F$6)*AND(D164='[1]كشف حساب'!$B$5),1,"")) ->  | E164: =IFERROR(VLOOKUP(D164,'بيان العملاء'!$B$7:$J$170,2,0),"") ->  | I164: =IFERROR(VLOOKUP(D164,'بيان العملاء'!$B$7:$J$170,6,0),"") -> 
B165: =IF(C165="","",COUNTIF($C$7:C165,C165)) ->  | C165: =IF(AND('[1]كشف حساب'!$F$5&'[1]كشف حساب'!$F$6="")*AND(D165='[1]كشف حساب'!$B$5),1,IF(AND(F165>='[1]كشف حساب'!$F$5,'حركة العملاء'!F165<='[1]كشف حساب'!$F$6)*AND(D165='[1]كشف حساب'!$B$5),1,"")) ->  | E165: =IFERROR(VLOOKUP(D165,'بيان العملاء'!$B$7:$J$170,2,0),"") ->  | I165: =IFERROR(VLOOKUP(D165,'بيان العملاء'!$B$7:$J$170,6,0),"") -> 
B166: =IF(C166="","",COUNTIF($C$7:C166,C166)) ->  | C166: =IF(AND('[1]كشف حساب'!$F$5&'[1]كشف حساب'!$F$6="")*AND(D166='[1]كشف حساب'!$B$5),1,IF(AND(F166>='[1]كشف حساب'!$F$5,'حركة العملاء'!F166<='[1]كشف حساب'!$F$6)*AND(D166='[1]كشف حساب'!$B$5),1,"")) ->  | E166: =IFERROR(VLOOKUP(D166,'بيان العملاء'!$B$7:$J$170,2,0),"") ->  | I166: =IFERROR(VLOOKUP(D166,'بيان العملاء'!$B$7:$J$170,6,0),"") -> 
B167: =IF(C167="","",COUNTIF($C$7:C167,C167)) ->  | C167: =IF(AND('[1]كشف حساب'!$F$5&'[1]كشف حساب'!$F$6="")*AND(D167='[1]كشف حساب'!$B$5),1,IF(AND(F167>='[1]كشف حساب'!$F$5,'حركة العملاء'!F167<='[1]كشف حساب'!$F$6)*AND(D167='[1]كشف حساب'!$B$5),1,"")) ->  | E167: =IFERROR(VLOOKUP(D167,'بيان العملاء'!$B$7:$J$170,2,0),"") ->  | I167: =IFERROR(VLOOKUP(D167,'بيان العملاء'!$B$7:$J$170,6,0),"") -> 
B168: =IF(C168="","",COUNTIF($C$7:C168,C168)) ->  | C168: =IF(AND('[1]كشف حساب'!$F$5&'[1]كشف حساب'!$F$6="")*AND(D168='[1]كشف حساب'!$B$5),1,IF(AND(F168>='[1]كشف حساب'!$F$5,'حركة العملاء'!F168<='[1]كشف حساب'!$F$6)*AND(D168='[1]كشف حساب'!$B$5),1,"")) ->  | E168: =IFERROR(VLOOKUP(D168,'بيان العملاء'!$B$7:$J$170,2,0),"") ->  | I168: =IFERROR(VLOOKUP(D168,'بيان العملاء'!$B$7:$J$170,6,0),"") -> 
B169: =IF(C169="","",COUNTIF($C$7:C169,C169)) ->  | C169: =IF(AND('[1]كشف حساب'!$F$5&'[1]كشف حساب'!$F$6="")*AND(D169='[1]كشف حساب'!$B$5),1,IF(AND(F169>='[1]كشف حساب'!$F$5,'حركة العملاء'!F169<='[1]كشف حساب'!$F$6)*AND(D169='[1]كشف حساب'!$B$5),1,"")) ->  | E169: =IFERROR(VLOOKUP(D169,'بيان العملاء'!$B$7:$J$170,2,0),"") ->  | I169: =IFERROR(VLOOKUP(D169,'بيان العملاء'!$B$7:$J$170,6,0),"") -> 
B170: =IF(C170="","",COUNTIF($C$7:C170,C170)) ->  | C170: =IF(AND('[1]كشف حساب'!$F$5&'[1]كشف حساب'!$F$6="")*AND(D170='[1]كشف حساب'!$B$5),1,IF(AND(F170>='[1]كشف حساب'!$F$5,'حركة العملاء'!F170<='[1]كشف حساب'!$F$6)*AND(D170='[1]كشف حساب'!$B$5),1,"")) ->  | E170: =IFERROR(VLOOKUP(D170,'بيان العملاء'!$B$7:$J$170,2,0),"") ->  | I170: =IFERROR(VLOOKUP(D170,'بيان العملاء'!$B$7:$J$170,6,0),"") -> 
B171: =IF(C171="","",COUNTIF($C$7:C171,C171)) ->  | C171: =IF(AND('[1]كشف حساب'!$F$5&'[1]كشف حساب'!$F$6="")*AND(D171='[1]كشف حساب'!$B$5),1,IF(AND(F171>='[1]كشف حساب'!$F$5,'حركة العملاء'!F171<='[1]كشف حساب'!$F$6)*AND(D171='[1]كشف حساب'!$B$5),1,"")) ->  | E171: =IFERROR(VLOOKUP(D171,'بيان العملاء'!$B$7:$J$170,2,0),"") ->  | I171: =IFERROR(VLOOKUP(D171,'بيان العملاء'!$B$7:$J$170,6,0),"") -> 
B172: =IF(C172="","",COUNTIF($C$7:C172,C172)) ->  | C172: =IF(AND('[1]كشف حساب'!$F$5&'[1]كشف حساب'!$F$6="")*AND(D172='[1]كشف حساب'!$B$5),1,IF(AND(F172>='[1]كشف حساب'!$F$5,'حركة العملاء'!F172<='[1]كشف حساب'!$F$6)*AND(D172='[1]كشف حساب'!$B$5),1,"")) ->  | E172: =IFERROR(VLOOKUP(D172,'بيان العملاء'!$B$7:$J$170,2,0),"") ->  | I172: =IFERROR(VLOOKUP(D172,'بيان العملاء'!$B$7:$J$170,6,0),"") -> 
B173: =IF(C173="","",COUNTIF($C$7:C173,C173)) ->  | C173: =IF(AND('[1]كشف حساب'!$F$5&'[1]كشف حساب'!$F$6="")*AND(D173='[1]كشف حساب'!$B$5),1,IF(AND(F173>='[1]كشف حساب'!$F$5,'حركة العملاء'!F173<='[1]كشف حساب'!$F$6)*AND(D173='[1]كشف حساب'!$B$5),1,"")) ->  | E173: =IFERROR(VLOOKUP(D173,'بيان العملاء'!$B$7:$J$170,2,0),"") ->  | I173: =IFERROR(VLOOKUP(D173,'بيان العملاء'!$B$7:$J$170,6,0),"") -> 
B174: =IF(C174="","",COUNTIF($C$7:C174,C174)) ->  | C174: =IF(AND('[1]كشف حساب'!$F$5&'[1]كشف حساب'!$F$6="")*AND(D174='[1]كشف حساب'!$B$5),1,IF(AND(F174>='[1]كشف حساب'!$F$5,'حركة العملاء'!F174<='[1]كشف حساب'!$F$6)*AND(D174='[1]كشف حساب'!$B$5),1,"")) ->  | E174: =IFERROR(VLOOKUP(D174,'بيان العملاء'!$B$7:$J$170,2,0),"") ->  | I174: =IFERROR(VLOOKUP(D174,'بيان العملاء'!$B$7:$J$170,6,0),"") -> 
B175: =IF(C175="","",COUNTIF($C$7:C175,C175)) ->  | C175: =IF(AND('[1]كشف حساب'!$F$5&'[1]كشف حساب'!$F$6="")*AND(D175='[1]كشف حساب'!$B$5),1,IF(AND(F175>='[1]كشف حساب'!$F$5,'حركة العملاء'!F175<='[1]كشف حساب'!$F$6)*AND(D175='[1]كشف حساب'!$B$5),1,"")) ->  | E175: =IFERROR(VLOOKUP(D175,'بيان العملاء'!$B$7:$J$170,2,0),"") ->  | I175: =IFERROR(VLOOKUP(D175,'بيان العملاء'!$B$7:$J$170,6,0),"") -> 
B176: =IF(C176="","",COUNTIF($C$7:C176,C176)) ->  | C176: =IF(AND('[1]كشف حساب'!$F$5&'[1]كشف حساب'!$F$6="")*AND(D176='[1]كشف حساب'!$B$5),1,IF(AND(F176>='[1]كشف حساب'!$F$5,'حركة العملاء'!F176<='[1]كشف حساب'!$F$6)*AND(D176='[1]كشف حساب'!$B$5),1,"")) ->  | E176: =IFERROR(VLOOKUP(D176,'بيان العملاء'!$B$7:$J$170,2,0),"") ->  | I176: =IFERROR(VLOOKUP(D176,'بيان العملاء'!$B$7:$J$170,6,0),"") -> 
B177: =IF(C177="","",COUNTIF($C$7:C177,C177)) ->  | C177: =IF(AND('[1]كشف حساب'!$F$5&'[1]كشف حساب'!$F$6="")*AND(D177='[1]كشف حساب'!$B$5),1,IF(AND(F177>='[1]كشف حساب'!$F$5,'حركة العملاء'!F177<='[1]كشف حساب'!$F$6)*AND(D177='[1]كشف حساب'!$B$5),1,"")) ->  | E177: =IFERROR(VLOOKUP(D177,'بيان العملاء'!$B$7:$J$170,2,0),"") ->  | I177: =IFERROR(VLOOKUP(D177,'بيان العملاء'!$B$7:$J$170,6,0),"") -> 
B178: =IF(C178="","",COUNTIF($C$7:C178,C178)) ->  | C178: =IF(AND('[1]كشف حساب'!$F$5&'[1]كشف حساب'!$F$6="")*AND(D178='[1]كشف حساب'!$B$5),1,IF(AND(F178>='[1]كشف حساب'!$F$5,'حركة العملاء'!F178<='[1]كشف حساب'!$F$6)*AND(D178='[1]كشف حساب'!$B$5),1,"")) ->  | E178: =IFERROR(VLOOKUP(D178,'بيان العملاء'!$B$7:$J$170,2,0),"") ->  | I178: =IFERROR(VLOOKUP(D178,'بيان العملاء'!$B$7:$J$170,6,0),"") -> 
B179: =IF(C179="","",COUNTIF($C$7:C179,C179)) ->  | C179: =IF(AND('[1]كشف حساب'!$F$5&'[1]كشف حساب'!$F$6="")*AND(D179='[1]كشف حساب'!$B$5),1,IF(AND(F179>='[1]كشف حساب'!$F$5,'حركة العملاء'!F179<='[1]كشف حساب'!$F$6)*AND(D179='[1]كشف حساب'!$B$5),1,"")) ->  | E179: =IFERROR(VLOOKUP(D179,'بيان العملاء'!$B$7:$J$170,2,0),"") ->  | I179: =IFERROR(VLOOKUP(D179,'بيان العملاء'!$B$7:$J$170,6,0),"") -> 
B180: =IF(C180="","",COUNTIF($C$7:C180,C180)) ->  | C180: =IF(AND('[1]كشف حساب'!$F$5&'[1]كشف حساب'!$F$6="")*AND(D180='[1]كشف حساب'!$B$5),1,IF(AND(F180>='[1]كشف حساب'!$F$5,'حركة العملاء'!F180<='[1]كشف حساب'!$F$6)*AND(D180='[1]كشف حساب'!$B$5),1,"")) ->  | E180: =IFERROR(VLOOKUP(D180,'بيان العملاء'!$B$7:$J$170,2,0),"") ->  | I180: =IFERROR(VLOOKUP(D180,'بيان العملاء'!$B$7:$J$170,6,0),"") -> 
B181: =IF(C181="","",COUNTIF($C$7:C181,C181)) ->  | C181: =IF(AND('[1]كشف حساب'!$F$5&'[1]كشف حساب'!$F$6="")*AND(D181='[1]كشف حساب'!$B$5),1,IF(AND(F181>='[1]كشف حساب'!$F$5,'حركة العملاء'!F181<='[1]كشف حساب'!$F$6)*AND(D181='[1]كشف حساب'!$B$5),1,"")) ->  | E181: =IFERROR(VLOOKUP(D181,'بيان العملاء'!$B$7:$J$170,2,0),"") ->  | I181: =IFERROR(VLOOKUP(D181,'بيان العملاء'!$B$7:$J$170,6,0),"") -> 
B182: =IF(C182="","",COUNTIF($C$7:C182,C182)) ->  | C182: =IF(AND('[1]كشف حساب'!$F$5&'[1]كشف حساب'!$F$6="")*AND(D182='[1]كشف حساب'!$B$5),1,IF(AND(F182>='[1]كشف حساب'!$F$5,'حركة العملاء'!F182<='[1]كشف حساب'!$F$6)*AND(D182='[1]كشف حساب'!$B$5),1,"")) ->  | E182: =IFERROR(VLOOKUP(D182,'بيان العملاء'!$B$7:$J$170,2,0),"") ->  | I182: =IFERROR(VLOOKUP(D182,'بيان العملاء'!$B$7:$J$170,6,0),"") -> 
B183: =IF(C183="","",COUNTIF($C$7:C183,C183)) ->  | C183: =IF(AND('[1]كشف حساب'!$F$5&'[1]كشف حساب'!$F$6="")*AND(D183='[1]كشف حساب'!$B$5),1,IF(AND(F183>='[1]كشف حساب'!$F$5,'حركة العملاء'!F183<='[1]كشف حساب'!$F$6)*AND(D183='[1]كشف حساب'!$B$5),1,"")) ->  | E183: =IFERROR(VLOOKUP(D183,'بيان العملاء'!$B$7:$J$170,2,0),"") ->  | I183: =IFERROR(VLOOKUP(D183,'بيان العملاء'!$B$7:$J$170,6,0),"") -> 
B184: =IF(C184="","",COUNTIF($C$7:C184,C184)) ->  | C184: =IF(AND('[1]كشف حساب'!$F$5&'[1]كشف حساب'!$F$6="")*AND(D184='[1]كشف حساب'!$B$5),1,IF(AND(F184>='[1]كشف حساب'!$F$5,'حركة العملاء'!F184<='[1]كشف حساب'!$F$6)*AND(D184='[1]كشف حساب'!$B$5),1,"")) ->  | E184: =IFERROR(VLOOKUP(D184,'بيان العملاء'!$B$7:$J$170,2,0),"") ->  | I184: =IFERROR(VLOOKUP(D184,'بيان العملاء'!$B$7:$J$170,6,0),"") -> 
B185: =IF(C185="","",COUNTIF($C$7:C185,C185)) ->  | C185: =IF(AND('[1]كشف حساب'!$F$5&'[1]كشف حساب'!$F$6="")*AND(D185='[1]كشف حساب'!$B$5),1,IF(AND(F185>='[1]كشف حساب'!$F$5,'حركة العملاء'!F185<='[1]كشف حساب'!$F$6)*AND(D185='[1]كشف حساب'!$B$5),1,"")) ->  | E185: =IFERROR(VLOOKUP(D185,'بيان العملاء'!$B$7:$J$170,2,0),"") ->  | I185: =IFERROR(VLOOKUP(D185,'بيان العملاء'!$B$7:$J$170,6,0),"") -> 
B186: =IF(C186="","",COUNTIF($C$7:C186,C186)) ->  | C186: =IF(AND('[1]كشف حساب'!$F$5&'[1]كشف حساب'!$F$6="")*AND(D186='[1]كشف حساب'!$B$5),1,IF(AND(F186>='[1]كشف حساب'!$F$5,'حركة العملاء'!F186<='[1]كشف حساب'!$F$6)*AND(D186='[1]كشف حساب'!$B$5),1,"")) ->  | E186: =IFERROR(VLOOKUP(D186,'بيان العملاء'!$B$7:$J$170,2,0),"") ->  | I186: =IFERROR(VLOOKUP(D186,'بيان العملاء'!$B$7:$J$170,6,0),"") -> 
B187: =IF(C187="","",COUNTIF($C$7:C187,C187)) ->  | C187: =IF(AND('[1]كشف حساب'!$F$5&'[1]كشف حساب'!$F$6="")*AND(D187='[1]كشف حساب'!$B$5),1,IF(AND(F187>='[1]كشف حساب'!$F$5,'حركة العملاء'!F187<='[1]كشف حساب'!$F$6)*AND(D187='[1]كشف حساب'!$B$5),1,"")) ->  | E187: =IFERROR(VLOOKUP(D187,'بيان العملاء'!$B$7:$J$170,2,0),"") ->  | I187: =IFERROR(VLOOKUP(D187,'بيان العملاء'!$B$7:$J$170,6,0),"") -> 
B188: =IF(C188="","",COUNTIF($C$7:C188,C188)) ->  | C188: =IF(AND('[1]كشف حساب'!$F$5&'[1]كشف حساب'!$F$6="")*AND(D188='[1]كشف حساب'!$B$5),1,IF(AND(F188>='[1]كشف حساب'!$F$5,'حركة العملاء'!F188<='[1]كشف حساب'!$F$6)*AND(D188='[1]كشف حساب'!$B$5),1,"")) ->  | E188: =IFERROR(VLOOKUP(D188,'بيان العملاء'!$B$7:$J$170,2,0),"") ->  | I188: =IFERROR(VLOOKUP(D188,'بيان العملاء'!$B$7:$J$170,6,0),"") -> 
B189: =IF(C189="","",COUNTIF($C$7:C189,C189)) ->  | C189: =IF(AND('[1]كشف حساب'!$F$5&'[1]كشف حساب'!$F$6="")*AND(D189='[1]كشف حساب'!$B$5),1,IF(AND(F189>='[1]كشف حساب'!$F$5,'حركة العملاء'!F189<='[1]كشف حساب'!$F$6)*AND(D189='[1]كشف حساب'!$B$5),1,"")) ->  | E189: =IFERROR(VLOOKUP(D189,'بيان العملاء'!$B$7:$J$170,2,0),"") ->  | I189: =IFERROR(VLOOKUP(D189,'بيان العملاء'!$B$7:$J$170,6,0),"") -> 
B190: =IF(C190="","",COUNTIF($C$7:C190,C190)) ->  | C190: =IF(AND('[1]كشف حساب'!$F$5&'[1]كشف حساب'!$F$6="")*AND(D190='[1]كشف حساب'!$B$5),1,IF(AND(F190>='[1]كشف حساب'!$F$5,'حركة العملاء'!F190<='[1]كشف حساب'!$F$6)*AND(D190='[1]كشف حساب'!$B$5),1,"")) ->  | E190: =IFERROR(VLOOKUP(D190,'بيان العملاء'!$B$7:$J$170,2,0),"") ->  | I190: =IFERROR(VLOOKUP(D190,'بيان العملاء'!$B$7:$J$170,6,0),"") -> 
B191: =IF(C191="","",COUNTIF($C$7:C191,C191)) ->  | C191: =IF(AND('[1]كشف حساب'!$F$5&'[1]كشف حساب'!$F$6="")*AND(D191='[1]كشف حساب'!$B$5),1,IF(AND(F191>='[1]كشف حساب'!$F$5,'حركة العملاء'!F191<='[1]كشف حساب'!$F$6)*AND(D191='[1]كشف حساب'!$B$5),1,"")) ->  | E191: =IFERROR(VLOOKUP(D191,'بيان العملاء'!$B$7:$J$170,2,0),"") ->  | I191: =IFERROR(VLOOKUP(D191,'بيان العملاء'!$B$7:$J$170,6,0),"") -> 
B192: =IF(C192="","",COUNTIF($C$7:C192,C192)) ->  | C192: =IF(AND('[1]كشف حساب'!$F$5&'[1]كشف حساب'!$F$6="")*AND(D192='[1]كشف حساب'!$B$5),1,IF(AND(F192>='[1]كشف حساب'!$F$5,'حركة العملاء'!F192<='[1]كشف حساب'!$F$6)*AND(D192='[1]كشف حساب'!$B$5),1,"")) ->  | E192: =IFERROR(VLOOKUP(D192,'بيان العملاء'!$B$7:$J$170,2,0),"") ->  | I192: =IFERROR(VLOOKUP(D192,'بيان العملاء'!$B$7:$J$170,6,0),"") -> 
B193: =IF(C193="","",COUNTIF($C$7:C193,C193)) ->  | C193: =IF(AND('[1]كشف حساب'!$F$5&'[1]كشف حساب'!$F$6="")*AND(D193='[1]كشف حساب'!$B$5),1,IF(AND(F193>='[1]كشف حساب'!$F$5,'حركة العملاء'!F193<='[1]كشف حساب'!$F$6)*AND(D193='[1]كشف حساب'!$B$5),1,"")) ->  | E193: =IFERROR(VLOOKUP(D193,'بيان العملاء'!$B$7:$J$170,2,0),"") ->  | I193: =IFERROR(VLOOKUP(D193,'بيان العملاء'!$B$7:$J$170,6,0),"") -> 
B194: =IF(C194="","",COUNTIF($C$7:C194,C194)) ->  | C194: =IF(AND('[1]كشف حساب'!$F$5&'[1]كشف حساب'!$F$6="")*AND(D194='[1]كشف حساب'!$B$5),1,IF(AND(F194>='[1]كشف حساب'!$F$5,'حركة العملاء'!F194<='[1]كشف حساب'!$F$6)*AND(D194='[1]كشف حساب'!$B$5),1,"")) ->  | E194: =IFERROR(VLOOKUP(D194,'بيان العملاء'!$B$7:$J$170,2,0),"") ->  | I194: =IFERROR(VLOOKUP(D194,'بيان العملاء'!$B$7:$J$170,6,0),"") -> 
B195: =IF(C195="","",COUNTIF($C$7:C195,C195)) ->  | C195: =IF(AND('[1]كشف حساب'!$F$5&'[1]كشف حساب'!$F$6="")*AND(D195='[1]كشف حساب'!$B$5),1,IF(AND(F195>='[1]كشف حساب'!$F$5,'حركة العملاء'!F195<='[1]كشف حساب'!$F$6)*AND(D195='[1]كشف حساب'!$B$5),1,"")) ->  | E195: =IFERROR(VLOOKUP(D195,'بيان العملاء'!$B$7:$J$170,2,0),"") ->  | I195: =IFERROR(VLOOKUP(D195,'بيان العملاء'!$B$7:$J$170,6,0),"") -> 
B196: =IF(C196="","",COUNTIF($C$7:C196,C196)) ->  | C196: =IF(AND('[1]كشف حساب'!$F$5&'[1]كشف حساب'!$F$6="")*AND(D196='[1]كشف حساب'!$B$5),1,IF(AND(F196>='[1]كشف حساب'!$F$5,'حركة العملاء'!F196<='[1]كشف حساب'!$F$6)*AND(D196='[1]كشف حساب'!$B$5),1,"")) ->  | E196: =IFERROR(VLOOKUP(D196,'بيان العملاء'!$B$7:$J$170,2,0),"") ->  | I196: =IFERROR(VLOOKUP(D196,'بيان العملاء'!$B$7:$J$170,6,0),"") -> 
B197: =IF(C197="","",COUNTIF($C$7:C197,C197)) ->  | C197: =IF(AND('[1]كشف حساب'!$F$5&'[1]كشف حساب'!$F$6="")*AND(D197='[1]كشف حساب'!$B$5),1,IF(AND(F197>='[1]كشف حساب'!$F$5,'حركة العملاء'!F197<='[1]كشف حساب'!$F$6)*AND(D197='[1]كشف حساب'!$B$5),1,"")) ->  | E197: =IFERROR(VLOOKUP(D197,'بيان العملاء'!$B$7:$J$170,2,0),"") ->  | I197: =IFERROR(VLOOKUP(D197,'بيان العملاء'!$B$7:$J$170,6,0),"") -> 
B198: =IF(C198="","",COUNTIF($C$7:C198,C198)) ->  | C198: =IF(AND('[1]كشف حساب'!$F$5&'[1]كشف حساب'!$F$6="")*AND(D198='[1]كشف حساب'!$B$5),1,IF(AND(F198>='[1]كشف حساب'!$F$5,'حركة العملاء'!F198<='[1]كشف حساب'!$F$6)*AND(D198='[1]كشف حساب'!$B$5),1,"")) ->  | E198: =IFERROR(VLOOKUP(D198,'بيان العملاء'!$B$7:$J$170,2,0),"") ->  | I198: =IFERROR(VLOOKUP(D198,'بيان العملاء'!$B$7:$J$170,6,0),"") -> 
B199: =IF(C199="","",COUNTIF($C$7:C199,C199)) ->  | C199: =IF(AND('[1]كشف حساب'!$F$5&'[1]كشف حساب'!$F$6="")*AND(D199='[1]كشف حساب'!$B$5),1,IF(AND(F199>='[1]كشف حساب'!$F$5,'حركة العملاء'!F199<='[1]كشف حساب'!$F$6)*AND(D199='[1]كشف حساب'!$B$5),1,"")) ->  | E199: =IFERROR(VLOOKUP(D199,'بيان العملاء'!$B$7:$J$170,2,0),"") ->  | I199: =IFERROR(VLOOKUP(D199,'بيان العملاء'!$B$7:$J$170,6,0),"") -> 
B200: =IF(C200="","",COUNTIF($C$7:C200,C200)) ->  | C200: =IF(AND('[1]كشف حساب'!$F$5&'[1]كشف حساب'!$F$6="")*AND(D200='[1]كشف حساب'!$B$5),1,IF(AND(F200>='[1]كشف حساب'!$F$5,'حركة العملاء'!F200<='[1]كشف حساب'!$F$6)*AND(D200='[1]كشف حساب'!$B$5),1,"")) ->  | E200: =IFERROR(VLOOKUP(D200,'بيان العملاء'!$B$7:$J$170,2,0),"") ->  | I200: =IFERROR(VLOOKUP(D200,'بيان العملاء'!$B$7:$J$170,6,0),"") -> 
B201: =IF(C201="","",COUNTIF($C$7:C201,C201)) ->  | C201: =IF(AND('[1]كشف حساب'!$F$5&'[1]كشف حساب'!$F$6="")*AND(D201='[1]كشف حساب'!$B$5),1,IF(AND(F201>='[1]كشف حساب'!$F$5,'حركة العملاء'!F201<='[1]كشف حساب'!$F$6)*AND(D201='[1]كشف حساب'!$B$5),1,"")) ->  | E201: =IFERROR(VLOOKUP(D201,'بيان العملاء'!$B$7:$J$170,2,0),"") ->  | I201: =IFERROR(VLOOKUP(D201,'بيان العملاء'!$B$7:$J$170,6,0),"") -> 
B202: =IF(C202="","",COUNTIF($C$7:C202,C202)) ->  | C202: =IF(AND('[1]كشف حساب'!$F$5&'[1]كشف حساب'!$F$6="")*AND(D202='[1]كشف حساب'!$B$5),1,IF(AND(F202>='[1]كشف حساب'!$F$5,'حركة العملاء'!F202<='[1]كشف حساب'!$F$6)*AND(D202='[1]كشف حساب'!$B$5),1,"")) ->  | E202: =IFERROR(VLOOKUP(D202,'بيان العملاء'!$B$7:$J$170,2,0),"") ->  | I202: =IFERROR(VLOOKUP(D202,'بيان العملاء'!$B$7:$J$170,6,0),"") -> 
B203: =IF(C203="","",COUNTIF($C$7:C203,C203)) ->  | C203: =IF(AND('[1]كشف حساب'!$F$5&'[1]كشف حساب'!$F$6="")*AND(D203='[1]كشف حساب'!$B$5),1,IF(AND(F203>='[1]كشف حساب'!$F$5,'حركة العملاء'!F203<='[1]كشف حساب'!$F$6)*AND(D203='[1]كشف حساب'!$B$5),1,"")) ->  | E203: =IFERROR(VLOOKUP(D203,'بيان العملاء'!$B$7:$J$170,2,0),"") ->  | I203: =IFERROR(VLOOKUP(D203,'بيان العملاء'!$B$7:$J$170,6,0),"") -> 
B204: =IF(C204="","",COUNTIF($C$7:C204,C204)) ->  | C204: =IF(AND('[1]كشف حساب'!$F$5&'[1]كشف حساب'!$F$6="")*AND(D204='[1]كشف حساب'!$B$5),1,IF(AND(F204>='[1]كشف حساب'!$F$5,'حركة العملاء'!F204<='[1]كشف حساب'!$F$6)*AND(D204='[1]كشف حساب'!$B$5),1,"")) ->  | E204: =IFERROR(VLOOKUP(D204,'بيان العملاء'!$B$7:$J$170,2,0),"") ->  | I204: =IFERROR(VLOOKUP(D204,'بيان العملاء'!$B$7:$J$170,6,0),"") -> 
B205: =IF(C205="","",COUNTIF($C$7:C205,C205)) ->  | C205: =IF(AND('[1]كشف حساب'!$F$5&'[1]كشف حساب'!$F$6="")*AND(D205='[1]كشف حساب'!$B$5),1,IF(AND(F205>='[1]كشف حساب'!$F$5,'حركة العملاء'!F205<='[1]كشف حساب'!$F$6)*AND(D205='[1]كشف حساب'!$B$5),1,"")) ->  | E205: =IFERROR(VLOOKUP(D205,'بيان العملاء'!$B$7:$J$170,2,0),"") ->  | I205: =IFERROR(VLOOKUP(D205,'بيان العملاء'!$B$7:$J$170,6,0),"") -> 
... 2301 more rows

Sheet كشف حساب
E2: 250
B4: الكود | C4: اسم العميل
B5: 1034 | C5: يوسف | E5: من | F5: 2019-05-01
B6: العنوان | E6: الي | F6: 2019-06-30
B7: رقم الموبايل
G8: =IF(H8>0,"رصيد مدين",IF(H8<0,"رصيد دائن","الحساب تم تصفيته")) -> رصيد مدين | H8: =G10-H10 -> 500
G9: اجملي مدين | H9: اجملي دائن
G10: =SUM(G12:G12000) -> 500 | H10: =SUM(H12:H12000) -> 0
D11: م | E11: التاريخ | F11: بيان الحركة | G11: مدين | H11: دائن
D12: 1 | F12: رصيد اول | G12: 500
